Cogmind - Beta 14 @@@ ROGUE MODE // 2024.08.14 @ 00:23:32 Player: H3-RMN Result: Destroyed by Enhanced Grunt with Neutron Cannon Performance ------------- Evolutions (9) 4500 Regions Visited (39) 7800 Robots Destroyed (434) 2170 Value Destroyed (14902) 14902 Prototype IDs (310) 6200 Alien Tech Used (6) 1200 Bonus (34740) 34740 TOTAL SCORE: 71512 Bonus ------- Triggered Max Security 2000 High Alert Combat Kills 2210 Follower Combat Kills 3849 Entered Garrisons 400 Used RIF Installer 2000 Network Hubs Disabled 400 Aligned with FarCom 300 Met Zhirov 300 Built Enhanced Grunts 300 A7 Reached Mainframe 300 Met R17 at Cetus 500 Found Hidden Lab 3000 Met R17 at Research 2000 Acquired SGEMP 2000 Delivered SGEMP 2000 Met MAIN.C 5000 Destroyed MAIN.C Shell 5000 Zhirov Destroyed MAIN.C 3000 Met Architect 300 Destroyed A8 300 Friendly Fire -419 Cogmind --------- Core Integrity 0/1600 Matter 78/300 Energy 698/700 System Corruption 0% Temperature Cool (0) Movement Core (50) Location -1/Access_0 Parts ------- > --- POWER (2) -------- (None) > --- PROPULSION (6) --- Combat Antigrav System Combat Antigrav System > --- UTILITY (15) ----- Experimental Energy Well Advanced Launcher Guidance Computer Advanced Launcher Guidance Computer Graphene Brace > --- WEAPON (3) ------- (None) > --- INVENTORY (5) ---- Zero-point Reactor Improved Weapon Cycler Heavy Regenerative Plating Z-bomb Delivery System Peak State ------------ > --- POWER ------------ Improved Quantum Reactor Zero-point Reactor > --- PROPULSION ------- Biometal Heavy Treads Biometal Heavy Treads Experimental Biometal Heavy Treads > --- UTILITY ---------- Experimental Cooling System Cargo Storage Unit Experimental Terrain Scan Processor Advanced Salvage Targeting Computer Advanced Salvage Targeting Computer Experimental Targeting Computer Experimental Core Analyzer Precision Matter Filter Improved Core Shielding Centrium Medium Armor Plating Graphene Brace Experimental EM Disruption Field Experimental Force Field Experimental System Purifier > --- WEAPON ----------- Heavy Quantum Rifle Helical Railgun Helical Railgun > --- INVENTORY -------- Improved Quantum Reactor Zero-point Reactor Vortex Chain Reactor Biometal Heavy Treads High-density Centrium Leg High-density Centrium Leg Compact Battery Experimental Energy Well Experimental Matter Compressor Experimental Matter Compressor Long-range Terrain Scanner Experimental Targeting Computer Experimental Target Analyzer Advanced Transmission Jammer Experimental ECM Suite Improved Core Shielding Experimental Shield Generator Transdimensional Reconstructor Cooled Nova Cannon Improved Potential Cannon Multirail Compact Linear Accelerator Graviton Cannon Graviton Cannon Z-bomb Delivery System Z-bomb Delivery System Z-bomb Delivery System [Rating: 239] Favorites ----------- Power Improved Quantum Reactor Engine Heavy Ion Engine Power Core Micro Fission Core Reactor Improved Quantum Reactor Propulsion Light Treads Treads Light Treads Leg Flexi-carbon Leg Wheel Armored Wheel Hover Unit Combat Antigrav System Flight Unit Improved Q-thruster Utility Experimental Hacking Suite Device Advanced Gravity Neutralizer Storage High-capacity Storage Unit Processor Transport Network Coupler Hackware Experimental Hacking Suite Protection Centrium Medium Armor Plating Weapon Autogun Energy Gun Heavy Quantum Rifle Energy Cannon Advanced Plasma Cannon Ballistic Gun Autogun Ballistic Cannon Improved Light Cannon Launcher Z-bomb Delivery System Special Weapon Remote Datajack Impact Weapon Shock Maul Slashing Weapon Vibroblade Piercing Weapon Spear Special Melee Weapon Improved Datajack Build | -11 -10 -10 -9 -9 -9 -8 -8 -8 -8 -8 -7 -7 -7 -7 -7 -7 -6 -6 -6 -6 -6 -6 -5 -5 -5 -5 -5 -5 -4 -4 -4 -4 -3 -3 -2 -2 -1 -1 -1 ------- Run | Yrd Mat Min Mat Min Exi Min Mat Gar Mat Gar Fac Was Fac Low Low Zio Pro Fac Ext Cet Arc Hub Fac Was Fac Upp Upp Zhi Pro Fac Arm Lab Res Tes Res Qua Acc Com Ac0 Slots Evolved 17 | . . . 2 . . . 2 . . . 2 . . . . . . 2 . . . . 2 . . . . . . 2 . . 2 . 2 . 1 . . Power 1 | . . . . . . . . . . . 1 . . . . . . . . . . . . . . . . . . . . . . . . . . . . Propulsion 3 | . . . 1 . . . 2 . . . . . . . . . . . . . . . . . . . . . . . . . . . . . . . . Utility 12 | . . . 1 . . . . . . . 1 . . . . . . 2 . . . . 2 . . . . . . 2 . . 2 . 2 . . . . Weapon 1 | . . . . . . . . . . . . . . . . . . . . . . . . . . . . . . . . . . . . . 1 . . Parts Attached 884 | 7 14 2 22 1 1 7 54 36 36 35 34 9 17 3 10 17 7 24 34 10 9 5 63 . 81 8 2 3 1 48 42 8 42 15 14 5 4 123 31 Power 72 | 1 2 . 4 . . . 2 . . 4 2 . 1 . . 2 2 4 5 1 . . 7 . 5 . . . . 2 7 . 1 1 . . . 17 2 Engine 18 | 1 2 . 3 . . . 1 . . 3 1 . . . . . . 1 4 . . . 2 . . . . . . . . . . . . . . . . Core 27 | . . . 1 . . . 1 . . 1 1 . 1 . . 2 2 3 1 . . . 3 . 3 . . . . 2 3 . 1 . . . . 2 . Reactor 27 | . . . . . . . . . . . . . . . . . . . . 1 . . 2 . 2 . . . . . 4 . . 1 . . . 15 2 Propulsion 158 | 2 2 2 5 1 . 2 22 8 6 12 2 . 3 . 3 2 2 2 12 . . 1 12 . 9 . 1 2 . 5 . . 11 . 6 . . 21 2 Treads 49 | . 2 2 5 1 . 1 16 8 6 1 . . . . . . . . . . . . . . . . . . . . . . . . . . . 7 . Leg 18 | . . . . . . . . . . 6 . . . . . . . . 8 . . 1 2 . . . . . . . . . . . . . . 1 . Wheel 12 | 2 . . . . . 1 5 . . . . . . . . . . . 4 . . . . . . . . . . . . . . . . . . . . Hover 12 | . . . . . . . . . . . . . . . 1 1 . . . . . . . . . . . . . 1 . . 1 . . . . 6 2 Flight 67 | . . . . . . . 1 . . 5 2 . 3 . 2 1 2 2 . . . . 10 . 9 . 1 2 . 4 . . 10 . 6 . . 7 . Utility 435 | 2 3 . 9 . 1 1 15 23 10 9 24 5 11 1 5 8 3 12 12 5 5 4 31 . 62 8 1 1 1 37 28 4 24 2 5 2 4 48 9 Device 242 | 1 1 . . . . . 5 13 7 4 19 5 4 1 5 8 . 5 6 1 2 . 19 . 55 5 1 1 1 19 11 2 15 2 1 . 1 19 3 Storage 25 | 1 2 . 1 . 1 . . . . 1 1 . 1 . . . . 3 2 . . . 1 . 2 . . . . . . . 1 . . . . 6 2 Processor 34 | . . . 2 . . . 1 1 1 . . . 2 . . . . 2 1 . . . 1 . 2 1 . . . 4 1 . 3 . 3 . 1 8 . Hackware 41 | . . . . . . . . 1 . . 4 . 4 . . . 3 2 . 1 2 2 5 . 1 . . . . 3 8 1 2 . . 2 . . . Protection 93 | . . . 6 . . 1 9 8 2 4 . . . . . . . . 3 3 1 2 5 . 2 2 . . . 11 8 1 3 . 1 . 2 15 4 Artifact . | . . . . . . . . . . . . . . . . . . . . . . . . . . . . . . . . . . . . . . . . Weapon 219 | 2 7 . 4 . . 4 15 5 20 10 6 4 2 2 2 5 . 6 5 4 4 . 13 . 5 . . . . 4 7 4 6 12 3 3 . 37 18 Energy Gun 22 | . . . . . . . 2 2 1 . . . . . . . . . 3 . . . . . . . . . . . 1 2 2 1 . . . 8 . Energy Cannon 43 | . . . . . . . . . . . . . . . . . . 1 . . . . 4 . 3 . . . . 1 3 1 3 6 . 2 . 10 9 Ballistic Gun 40 | 2 4 . 2 . . 2 7 . 8 5 1 . . . . . . . . . 2 . 1 . . . . . . . . . . . . . . 6 . Ballistic Cannon 20 | . 2 . 1 . . . 3 1 3 . . 1 . . . . . . 1 1 . . 1 . 1 . . . . . . . . 1 . . . 4 . Launcher 38 | . . . 1 . . 2 3 2 3 2 1 . 1 . 1 . . . . 2 . . 4 . . . . . . . 2 . . 1 . . . 4 9 Special Weapon 4 | . . . . . . . . . . . . 1 1 . . . . . . . . . . . . . . . . . . . 1 . . . . 1 . Impact Weapon 1 | . . . . . . . . . . . . . . . . . . . . . . . 1 . . . . . . . . . . . . . . . . Slashing Weapon 29 | . . . . . . . . . . . 2 . . 1 1 4 . 4 . 1 1 . 2 . 1 . . . . 3 1 1 . 3 2 1 . 1 . Piercing Weapon 18 | . . . . . . . . . 5 3 2 2 . 1 . 1 . . . . . . . . . . . . . . . . . . 1 . . 3 . Special Melee Weapon 4 | . 1 . . . . . . . . . . . . . . . . 1 1 . 1 . . . . . . . . . . . . . . . . . . Unidentified Prototypes 68 | . . . 1 . . . 3 . . . . 2 . . . . . 1 . 1 1 . 8 . 5 . 1 1 . 7 1 5 6 5 2 1 1 16 . Parts Lost 105 | . 5 . . 1 . 2 11 6 4 6 . . 1 . 5 . 4 10 1 2 . 1 3 . . . . . . . 1 . 2 . 1 . 2 15 22 Power 12 | . 1 . . . . . . . . 2 . . 1 . . . 1 . . 1 . 1 . . . . . . . . 1 . . . . . . 2 2 Propulsion 45 | . 2 . . 1 . 1 6 4 1 4 . . . . 3 . 3 5 1 . . . 1 . . . . . . . . . 1 . 1 . . 5 6 Utility 34 | . 1 . . . . 1 3 1 2 . . . . . 1 . . 4 . . . . 1 . . . . . . . . . . . . . 1 7 12 Weapon 14 | . 1 . . . . . 2 1 1 . . . . . 1 . . 1 . 1 . . 1 . . . . . . . . . 1 . . . 1 1 2 Highest Loss Streak 8 | . 3 . . 1 . 1 3 4 3 3 . . 1 . 5 . 2 4 1 1 . 1 2 . . . . . . . 1 . 2 . 1 . 1 6 8 To Critical Strikes 1 | . . . . . . . . 1 . . . . . . . . . . . . . . . . . . . . . . . . . . . . . . . Average Slot Usage (%) 92 | . 99 100 99 100 100 99 96 98 99 96 81 82 79 76 72 83 70 66 86 96 100 99 95 94 97 100 99 100 100 99 98 96 99 99 98 99 94 82 85 Engine 4 | . 14 14 11 11 11 11 8 . . 5 14 15 10 . . . . . 8 6 6 6 . . . . . . . . . . . . . . . . . Core 2 | . . . . . . . . 9 9 3 . . . 7 3 6 4 2 . 1 . . 4 5 9 5 5 5 5 4 3 4 3 4 4 4 3 . . Reactor 2 | . . . . . . . . . . . . . . . . . . . . 1 6 6 4 5 1 5 5 5 5 5 4 4 4 4 4 4 3 6 6 Treads 12 | . 21 28 33 33 33 32 32 34 35 15 . . . . . . . . . . . . . . . . . . . . . . . . . . . 8 . Leg 3 | . . . . . . . . . . 22 . . . . . . . . 18 33 33 33 15 . . . . . . . . . . . . . . . . Wheel 1 | . 6 . . . . . 9 9 9 3 . . . . . . . . 9 . . . . . . . . . . . . . . . . . . . . Hover 1 | . . . . . . . . . . . . . . . . 13 2 . . . . . . . . . . . . . . . . . . . . 2 22 Flight 9 | . . . . . . . . . . . 27 23 23 30 26 23 24 18 . . . . 10 23 26 29 31 33 33 29 30 28 25 26 24 24 23 1 . Device 9 | . 14 14 2 . . . 1 5 8 . 5 7 3 7 6 7 1 5 10 3 3 1 8 11 7 11 10 11 11 9 9 16 13 13 12 12 11 19 19 Storage 7 | . 14 14 11 11 11 11 9 9 9 9 7 7 7 7 7 7 1 4 5 6 6 6 3 5 5 5 5 5 5 5 5 4 4 4 4 4 3 4 6 Processor 6 | . . . 8 11 11 11 8 . 1 9 . . 3 7 7 7 7 8 3 . . . 1 . 3 10 11 11 11 6 6 4 7 8 16 15 14 14 7 Hackware 9 | . . . . . . . . 3 . . 16 15 14 7 7 7 19 15 13 18 20 27 21 29 28 17 16 16 16 23 24 19 25 26 24 24 22 1 . Protection 5 | . . . 10 11 11 11 8 8 7 8 . . . . . . . . 3 10 9 3 7 . . . . . . 5 3 3 3 4 3 4 2 7 11 Energy Cannon 1 | . . . . . . . . . . . . . . . . . . . . . . . 6 . 3 5 5 5 5 4 4 1 3 3 4 3 3 1 1 Ballistic Gun 4 | . 20 . 6 22 22 21 9 . 9 14 . . . . . . . . . . 4 5 . . . . . . . . . . . . . . . 4 . Ballistic Cannon 3 | . 6 28 15 . . . 6 9 6 . . . . . . . . . 5 8 1 . . . . . . . . . . . . . . . . 1 . Slashing Weapon 1 | . . . . . . . . . . . 5 . . . 3 6 7 5 1 1 5 6 . 5 1 . . . . 2 5 4 4 4 3 3 2 . . Peak Build Rating 239 | 7 13 13 20 18 18 19 35 42 41 39 59 59 59 51 49 53 51 67 72 91 98 100 118 106 125 125 124 128 130 157 160 174 189 197 209 213 210 239 231 Average Rating 98 | 5 9 13 17 17 18 18 26 34 33 27 49 53 53 47 41 48 39 47 51 80 95 95 103 106 105 119 122 125 129 145 151 159 183 189 203 207 203 217 217 On Entrance 87 | . 7 13 13 18 18 18 19 35 36 33 39 54 54 46 48 40 51 40 17 69 91 98 88 106 106 122 119 124 128 130 149 157 174 186 193 206 210 195 231 Naked Turns . | . . . . . . . . . . . . . . . . . . . . . . . . . . . . . . . . . . . . . . . . Heaviest Build 278 | 14 54 54 63 61 61 61 72 67 63 59 34 29 34 29 30 42 37 27 74 97 97 87 110 42 55 56 55 55 55 59 59 59 62 63 63 63 63 278 276 Greatest Support 241 | 10 40 40 60 60 60 60 60 80 12 55 40 40 31 30 30 25 25 30 91 91 91 91 104 44 55 55 55 61 61 69 60 60 63 69 69 69 69 241 99 Greatest Overweight (x) 28 | 1 2 1 1 1 1 3 5 5 5 4 9 . 1 . 1 3 2 4 1 1 28 . 2 . 1 1 . . . 1 . . 1 . 1 . . 2 2 Average Overweight (x) . | . 1 1 . 1 1 1 3 4 4 2 . . . . . 1 . . . . 2 . . . . . . . . . . . . . . . . . . Largest Inventory Capacity 30 | 8 20 20 20 20 20 20 20 20 20 20 15 15 15 15 15 15 15 10 20 20 20 20 20 10 15 15 15 15 15 15 15 15 15 15 15 15 15 30 30 Average Capacity 19 | 7 17 20 20 20 20 20 20 20 20 19 14 15 15 15 15 15 7 8 18 20 20 20 14 10 14 15 15 15 15 15 15 15 15 15 15 15 15 28 27 Most Carried 30 | 7 20 20 20 20 20 20 20 20 20 20 15 15 15 15 15 15 15 10 20 20 20 20 20 10 15 15 15 15 15 15 15 15 15 15 15 15 15 30 30 Average Carried 18 | 4 14 19 19 19 19 19 19 19 19 19 14 14 14 14 14 14 7 8 14 19 19 19 14 9 13 14 14 14 15 14 14 13 14 14 14 14 13 24 25 Final Capacity 30 | 8 20 20 20 20 20 20 20 20 20 15 15 15 15 15 15 15 5 5 20 20 20 20 10 10 15 15 15 15 15 15 15 15 15 15 15 15 15 30 5 Final Carried 30 | 7 20 20 20 20 20 20 20 20 20 14 15 15 15 15 15 15 5 5 20 20 20 20 10 10 15 15 15 15 15 15 15 15 15 15 15 15 15 30 5 Class Distribution -------------------- 21% | Mutant 19% | Scavenger-Mutant 14% | Wizard-Sprinter 12% | Scavenger-Tank 6% | Hacker-Mutant 5% | Wizard-Ninja 3% | Sprinter 3% | Hauler-Tank Dominant Class ---------------- Mutant | -10/Materials Mutant | -10/Mines Mutant | -9/Materials Mutant | -9/Mines Mutant | -9/Exiles Mutant | -8/Mines Scavenger-Mutant | -8/Materials Scavenger-Mutant | -8/Garrison Scavenger-Mutant | -8/Materials Scavenger-Mutant | -8/Garrison Hacker-Sprinter | -7/Factory Sprinter | -7/Waste Sprinter | -7/Factory Sprinter | -7/Lower Caves Trapper-Mutant | -7/Lower Caves Scavenger-Mutant | -7/Zion Sprinter | -6/Proximity Caves Hacker-Sprinter | -6/Factory Scavenger-Mutant | -6/Extension Hacker-Mutant | -6/Cetus Hacker-Mutant | -6/Archives Hacker-Mutant | -6/Hub_04(d) Hacker-Mutant | -5/Factory Wizard-Sprinter | -5/Waste Wizard-Sprinter | -5/Factory Hacker-Scout | -5/Upper Caves Hacker-Scout | -5/Upper Caves Hacker-Scout | -5/Zhirov Hacker-Scout | -4/Proximity Caves Wizard-Sprinter | -4/Factory Wizard-Sprinter | -4/Armory Wizard-Sprinter | -4/Lab Wizard-Ninja | -3/Research Wizard-Ninja | -3/Testing Wizard-Ninja | -2/Research Wizard-Ninja | -2/Quarantine Wizard-Ninja | -1/Access Scavenger-Tank | -1/Command Scavenger-Tank | -1/Access_0 Resources | -11 -10 -10 -9 -9 -9 -8 -8 -8 -8 -8 -7 -7 -7 -7 -7 -7 -6 -6 -6 -6 -6 -6 -5 -5 -5 -5 -5 -5 -4 -4 -4 -4 -3 -3 -2 -2 -1 -1 -1 ----------- Run | Yrd Mat Min Mat Min Exi Min Mat Gar Mat Gar Fac Was Fac Low Low Zio Pro Fac Ext Cet Arc Hub Fac Was Fac Upp Upp Zhi Pro Fac Arm Lab Res Tes Res Qua Acc Com Ac0 Matter Collected 24099 | 294 491 208 986 38 81 317 1907 559 1054 1027 464 110 293 30 92 50 162 208 639 231 105 44 654 . 1086 439 244 166 10 455 648 . 1780 1 387 147 8 4641 4043 Remotely 310 | . . . . . . . 151 159 . . . . . . . . . . . . . . . . . . . . . . . . . . . . . . . Salvage Created 22810 | 106 513 90 1317 93 . 407 1929 462 1158 1101 627 . 355 28 196 50 40 533 514 340 310 134 1437 . 1590 55 . 201 . 427 385 . 1150 . 58 163 20 6713 308 Parts 1193 | 5 40 5 115 5 . 28 108 45 66 61 42 . 21 . 11 5 1 30 23 11 17 3 48 . 27 . . 1 . 21 27 . 41 . 5 6 3 366 6 Haulers Intercepted 44 | . 2 . 6 . . . 6 . 4 . 8 . 1 . . . . . . . . . 4 . 4 . . . . . . . 8 . . 1 . . . Recyclers Shooed 11 | . 1 . . 1 . . . . . . . . . . . . . . 3 . . 1 3 . 1 . . . . . . . . . . . . 1 . Parts Field Recycled . | . . . . . . . . . . . . . . . . . . . . . . . . . . . . . . . . . . . . . . . . Retrieved Matter . | . . . . . . . . . . . . . . . . . . . . . . . . . . . . . . . . . . . . . . . . Parts Self-Destructed 8 | . . . . . . . . . . . . . . . 8 . . . . . . . . . . . . . . . . . . . . . . . . Prevented 1 | . . . . . . . . . . . . . . . . . . . . . . . . . . . . 1 . . . . . . . . . . . Kills | -11 -10 -10 -9 -9 -9 -8 -8 -8 -8 -8 -7 -7 -7 -7 -7 -7 -6 -6 -6 -6 -6 -6 -5 -5 -5 -5 -5 -5 -4 -4 -4 -4 -3 -3 -2 -2 -1 -1 -1 ------- Run | Yrd Mat Min Mat Min Exi Min Mat Gar Mat Gar Fac Was Fac Low Low Zio Pro Fac Ext Cet Arc Hub Fac Was Fac Upp Upp Zhi Pro Fac Arm Lab Res Tes Res Qua Acc Com Ac0 Combat Hostiles Destroyed 264 | . 14 2 29 3 . 14 41 20 29 25 6 . 7 . 5 . . 12 4 4 . . 10 . 3 . . . . 2 9 . 2 . . . . 15 8 Melee 25 | . . . . . . . . . . 3 2 . 3 . 4 . . . . . . . 1 . 2 . . . . 2 3 . 2 . . . . 3 . Guns 68 | . 11 . . 3 . 6 15 5 7 15 1 . . . . . . . 1 . . . . . . . . . . . . . . . . . . 4 . Cannons 89 | . 3 2 26 . . . 17 6 12 . . . . . . . . . 3 . . . 9 . . . . . . . . . . . . . . 8 3 AOE 75 | . . . 3 . . 8 9 9 10 7 3 . 4 . 1 . . 12 . . . . . . . . . . . . 6 . . . . . . . 3 Classes Destroyed 30 | 2 4 . 6 1 . 1 2 3 1 . 1 . . . 2 2 . . . . . . 1 . 1 1 . . . . . . . . . . . 2 . Worker 23 | . . . 6 . . 2 5 . 3 . . . 1 . . . . 1 . . . . 1 . 2 . . . . . . . 1 . . . 1 . . Builder 12 | . . . 2 . . 1 2 . 1 . . . . . . . . . 2 . . . 2 . 1 . . . . . . . . . 1 . . . . Tunneler 4 | 1 . . . . . 1 . . . . . . . . . . . . . . . . . . 1 . . . . 1 . . . . . . . . . Hauler 44 | . 2 . 6 . . . 6 . 4 . 8 . 1 . . . . . . . . . 4 . 4 . . . . . . . 8 . . 1 . . . Recycler 23 | 1 . 1 1 . . . 2 . 2 . 1 . . . . . . 1 2 . . 1 3 . 6 . . . . . . . . . . . . 2 . Minesweeper 2 | . . . . . . . . . . . . . . . 1 . . . . . . . . . . 1 . . . . . . . . . . . . . Mechanic 5 | . . . 1 . . . . . . . . . 1 . . . . 1 . . . . 1 . . . . . . 1 . . . . . . . . . Operator 22 | . . . 3 . . . 2 . 1 . 2 . . . . . . 1 1 . 9 . 1 . 1 . . . . . . . . . . 1 . . . Drone 1 | . . . . . . . . . . . . . . . . . . . . . . . . . 1 . . . . . . . . . . . . . . Watcher 35 | . 2 . 3 . . . 2 . 1 . . . 2 . . . . 1 . 1 . . 3 . 4 . . . . 6 2 . 5 . 1 1 . 1 . Swarmer 73 | . 6 2 7 . . 7 8 7 5 7 4 . 4 . . . . 5 . . . . 3 . . . . . . . 8 . . . . . . . . Cutter 2 | . . . . . . . . 2 . . . . . . . . . . . . . . . . . . . . . . . . . . . . . . . Saboteur 1 | . . . . . . . . . . . . . . . . . . . . . . . 1 . . . . . . . . . . . . . . . . Grunt 94 | . 8 . 11 1 . 5 21 2 15 13 1 . 2 . 1 . . 5 4 1 . . 2 . 1 . . . . 1 . . . . . . . . . Brawler 3 | . . . 1 1 . 1 . . . . . . . . . . . . . . . . . . . . . . . . . . . . . . . . . Duelist 2 | . . . . . . . . 1 1 . . . . . . . . . . . . . . . . . . . . . . . . . . . . . . Protector 2 | . . . . . . . . . 2 . . . . . . . . . . . . . . . . . . . . . . . . . . . . . . Sentry 40 | . . . 10 . . . 9 7 5 5 . . 1 . . . . 2 . . . . 1 . . . . . . . . . . . . . . . . Demolisher 1 | . . . . 1 . . . . . . . . . . . . . . . . . . . . . . . . . . . . . . . . . . . Specialist 3 | . . . . . . . 2 . . . . . . . . . . . . . . . 1 . . . . . . . . . . . . . . . . Hunter 6 | . . . . . . 1 . . 1 . . . . . . . . . . . . . . . 1 . . . . 1 . . 2 . . . . . . Programmer 8 | . . . . . . . . . . . 1 . . . 2 . . . . . . . 2 . . . . . . . 1 . . . . . . 2 . Heavy 1 | . . . . . . . 1 . . . . . . . . . . . . . . . . . . . . . . . . . . . . . . . . Behemoth 1 | . . . . . . . . 1 . . . . . . . . . . . . . . . . . . . . . . . . . . . . . . . Cetus Guard 3 | . . . . . . . . . . . . . . . . . . . . 3 . . . . . . . . . . . . . . . . . . . Enhanced Grunt 5 | . . . . . . . . . . . . . . . . . . . . . . . . . . . . . . . . . . . . . . . 5 Enhanced Hunter 2 | . . . . . . . . . . . . . . . . . . . . . . . . . . . . . . . . . . . . . . . 2 Zionite 1 | . . . . . . . . . . . . . . . . 1 . . . . . . . . . . . . . . . . . . . . . . . Samaritan 1 | . . . . . . . . . . . . . . . . . . . . . . . . . . 1 . . . . . . . . . . . . . Tinkerer 1 | . . . . . . . . . . . . . . . . 1 . . . . . . . . . . . . . . . . . . . . . . . Thief 2 | . . . . . . . . . . . . . . . 2 . . . . . . . . . . . . . . . . . . . . . . . . Thug 1 | . . . . . . . . . . . . . . . . . . . . . . . . . . . . . . . . . . . . . . 1 . Wizard 2 | . . . . . . . . . . . . . . . . . . . . . . . . . . . . . . . . . . . . . . 2 . Fireman 4 | . . . . . . . . . . . . . . . . . . . . . . . . . . . . . . . . . . . . . . 4 . Mutant 5 | . . . . . . . . . . . . . . . . . . . . . . . . . . . . . . . . . . . . . . 5 . Best Kill Streak 15 | 1 4 2 8 2 . 8 15 8 9 5 5 . 4 . 2 1 . 7 1 4 2 1 11 . 2 1 . . . 1 4 . 4 . 1 2 1 4 3 Combat Bots Only 13 | . 4 2 6 2 . 7 13 8 6 5 4 . 4 . 2 . . 7 1 3 . . 6 . 1 . . . . 1 4 . 2 . . . . 3 3 Max Kills in Single Turn 8 | 1 1 1 3 1 . 3 3 3 2 2 2 . 2 . 1 1 . 8 1 1 1 1 2 . 1 1 . . . 1 4 . 1 . 1 1 1 1 1 Gunslinging . | . . . . . . . . . . . . . . . . . . . . . . . . . . . . . . . . . . . . . . . . Exploded 7 | . . . 3 . . 3 3 3 2 2 2 . 2 . 1 . . 7 . . . . . . . . . . . . 4 . . . . . . . 1 Melee 1 | . . . . . . . . . . 1 1 . 1 . 1 . . . . . . . 1 . 1 . . . . 1 1 . 1 . . . . 1 . Uniques/NPCs Destroyed 2 | . . . . . . . . . . . . . . . . . . . . . . . . . . . . . . . . . . . . . . 1 1 MAIN.C Shell (-1/Command) A8 (-1/Access_0) Combat | -11 -10 -10 -9 -9 -9 -8 -8 -8 -8 -8 -7 -7 -7 -7 -7 -7 -6 -6 -6 -6 -6 -6 -5 -5 -5 -5 -5 -5 -4 -4 -4 -4 -3 -3 -2 -2 -1 -1 -1 -------- Run | Yrd Mat Min Mat Min Exi Min Mat Gar Mat Gar Fac Was Fac Low Low Zio Pro Fac Ext Cet Arc Hub Fac Was Fac Upp Upp Zhi Pro Fac Arm Lab Res Tes Res Qua Acc Com Ac0 Hostile Shots Fired 2397 | . 100 3 69 9 . 36 227 79 102 107 62 . 44 . 54 . 39 127 54 9 . 27 153 . 36 . . . 20 40 68 . 20 23 17 13 26 271 562 Missed 870 | . 21 1 24 . . 13 61 16 33 27 32 . 19 . 22 . 20 67 20 2 . 6 49 . 23 . . . 12 19 38 . 11 10 6 5 18 89 206 Damage Taken 28847 | . 869 33 554 400 . 328 2852 1225 1224 1287 347 . 357 . 522 . 326 1077 501 280 . 318 1923 . 239 . . . 64 465 526 . 495 312 258 197 213 3847 7808 Core 4350 | . 184 9 61 . . 28 291 53 48 99 116 . 134 . 136 . 94 732 40 49 . 12 78 . 51 . . . 26 137 159 . 100 62 . 75 79 355 1142 Absorbed by Shields 4065 | . . . . . . . . . . . . . . . . . . . 81 . . . . . . . . . . . . . . . . . . 842 3142 Reduced by Siege Mode 180 | . . . . . . . . . . . . . . . . . . . . . . . . . . . . . . . . . . . . . . 180 . Redirected to Shielding 1034 | . . . 52 . . . . . . . . . . . . . . . . . . . . . . . . . . 39 83 . 7 105 25 43 27 307 346 Ignored by Resistances 58 | . . . . . . . . . . . . . . . . . . . . . . . . . . . . . . . . . . . . . . 58 . Regen/Repaired (Parts) 2175 | . . . . . . . 90 . . . . . 15 . . . . . . . . . 6 . 80 . . . . 177 . . 239 . 154 . 68 551 795 Core Remaining (%) 58 | 100 . 22 . . . 77 . . . 10 . . . . . . 31 . . . . 2 . . . . . . 84 . . 74 . 87 . 94 . . . Volleys Fired 1388 | 6 57 4 90 13 . 29 169 50 81 92 8 4 13 . 1 . . 4 69 15 1 1 80 . 63 . 4 . 15 62 10 . 12 10 35 12 11 264 103 Largest 3 | 2 2 2 2 2 . 2 2 2 2 2 1 1 1 . 1 . . 1 2 2 1 1 2 . 1 . 1 . 1 1 1 . 1 1 1 1 1 3 3 Hottest 328 | 40 78 78 78 46 . 46 123 119 119 50 30 5 30 . 30 . . 85 117 101 48 35 120 . 98 . 98 . 98 98 98 . 113 150 150 50 50 328 250 Shots Fired 2396 | 12 114 8 179 26 . 51 331 72 148 177 8 4 13 . 1 . . 4 84 19 1 1 137 . 63 . 4 . 15 62 10 2 12 10 35 12 11 617 153 Gun 1233 | 12 94 . 8 26 . 44 227 35 89 172 6 . . . . . . . 48 . . 1 9 . . . . . . . . 1 . . . . . 461 . Cannon 1019 | . 20 8 170 . . . 98 32 48 . . . . . . . . 4 36 7 1 . 127 . 63 . 4 . 15 62 8 1 10 10 35 12 11 155 82 Launcher 128 | . . . 1 . . 7 6 5 11 5 2 . 4 . 1 . . . . 12 . . 1 . . . . . . . 2 . . . . . . . 71 Special 16 | . . . . . . . . . . . . 4 9 . . . . . . . . . . . . . . . . . . . 2 . . . . 1 . Kinetic 1414 | 12 114 8 178 26 . 44 304 32 126 172 6 . . . . . . . 36 7 1 1 9 . . . . . . . . . . . . . . 338 . Thermal 818 | . . . . . . . 21 35 11 . . . . . . . . 4 48 . . . 127 . 63 . 4 . 15 62 8 1 10 10 35 12 11 259 82 Explosive 113 | . . . 1 . . 7 6 5 11 5 2 . 4 . 1 . . . . . . . . . . . . . . . . . . . . . . . 71 Electromagnetic 35 | . . . . . . . . . . . . . . . . . . . . 12 . . 1 . . . . . . . 2 1 . . . . . 19 . Robot Hit Streak 55 | 6 8 3 8 6 . 6 18 12 13 9 5 3 3 . . . . . 8 5 1 2 6 . 1 . . . . 2 3 . 3 4 5 . . 55 38 Robot Miss Streak 8 | 1 5 2 4 3 . 2 4 6 8 4 2 1 1 . . . . . 2 3 . . 5 . 2 . . . . 1 1 . . . . . 1 3 5 Penetration Max 2 | . . . . . . . . . . . . . . . . . . . . . . . . . . . . . . . . . . . . . . 2 . Secondary Targets 5 | . 1 . . 1 . 1 1 . . 1 . . . . . . . . . . . . . . . . . . . . . . . . . . . . . Max Gunslinging Chain 1 | . 1 . . 1 . 1 1 . . 1 . . . . . . . . . . . . . . . . . . . . . . . . . . . . . Shots Hit Robots 1685 | 9 73 3 99 13 . 32 215 34 115 94 32 3 16 1 18 2 2 6 43 8 16 2 78 . 27 2 . 3 . 19 10 . 45 1 2 9 1 549 103 Core Hits 873 | 4 34 3 56 7 . 29 91 52 110 45 14 . 13 1 7 2 1 18 16 12 6 1 32 . 5 . . 1 . 6 16 . 17 . 2 3 2 211 56 Critical Kills 7 | . . . . . . . . . . . . . . . . . . . . . . . . . 1 . . . . 1 . . . . . . . 4 1 Critical Parts Destroyed 21 | . . . . . . . 2 . 1 . . . . . . . . . . . . . 3 . 7 . . 1 . . . . . . . . . 7 . Critical Strikes 73 | . . . 4 . . . 12 1 1 . 5 . . 1 3 . . . 3 1 . . 3 . 8 . . 1 . 2 1 . 5 . . 1 . 20 1 Burn 4 | . . . . . . . 1 1 . . . . . . . . . . 2 . . . . . . . . . . . . . . . . . . . . Meltdown 2 | . . . . . . . . . . . . . . . . . . . . . . . . . . . . . . . . . . . . . . 1 1 Destroy 15 | . . . . . . . 2 . 1 . . . . . . . . . . . . . . . . . . . . . . . . . . . . 12 . Blast 17 | . . . 4 . . . 9 . . . . . . . . . . . 1 1 . . . . . . . . . . . . . . . . . 2 . Corrupt 1 | . . . . . . . . . . . . . . . . . . . . . . . . . . . . . . . . . . . . . . 1 . Smash 13 | . . . . . . . . . . . . . . . . . . . . . . . 3 . 8 . . 1 . 1 . . . . . . . . . Sever 11 | . . . . . . . . . . . 3 . . . . . . . . . . . . . . . . . . 1 1 . 5 . . 1 . . . Impale 10 | . . . . . . . . . . . 2 . . 1 3 . . . . . . . . . . . . . . . . . . . . . . 4 . Melee Attacks 525 | . . . . . . . . . 9 26 53 . 26 15 27 7 17 16 5 . 15 1 26 . 71 5 1 3 . 26 27 3 74 7 4 10 1 50 . Impact 95 | . . . . . . . . . . . . . . . . . . . . . . . 19 . 60 5 1 3 . 7 . . . . . . . . . Slashing 267 | . . . . . . . . . . . 39 . . . 6 6 17 14 4 . 14 1 7 . 11 . . . . 19 27 3 74 7 4 10 1 3 . Piercing 159 | . . . . . . . . . 9 26 14 . 26 15 21 1 . . . . . . . . . . . . . . . . . . . . . 47 . Sneak Attacks 83 | . . . . . . . . . 1 1 10 . 3 . 2 2 . 5 3 . 14 1 2 . 18 2 . . . 3 1 . 11 . . 1 . 3 . Combat Hostiles 6 | . . . . . . . . . . 1 . . . . 1 . . . . . . . . . 2 . . . . 1 . . 1 . . . . . . Follow-up Attacks 3 | . . . . . . . . . . . . . . . 1 . . . . . . . 1 . 1 . . . . . . . . . . . . . . Damage Inflicted 76521 | 94 831 88 2553 197 . 1105 5051 1376 3655 2412 2065 . 763 49 731 108 196 2107 1138 718 1593 111 2947 . 2575 289 . 368 . 1316 945 . 3142 6 130 606 243 20562 16451 Guns 20170 | 94 586 . 68 197 . 482 2431 327 1127 1452 52 . . . . . . . 397 . . 26 83 . . . . . . . . . . . . . . 12848 . Cannons 15547 | . 245 88 2243 . . . 1877 577 962 . . . . . . . . . 594 102 27 . 2111 . 32 . . . . 68 . . 31 . 44 . 41 4520 1985 Explosions 22425 | . . . 242 . . 623 743 472 1477 533 266 . 277 . 86 . . 1805 . 616 . . 56 . . . . . . . 311 . . . . . 123 329 14466 Melee 18235 | . . . . . . . . . 89 427 1747 . 486 49 645 108 196 302 147 . 1566 85 559 . 2543 289 . 368 . 1248 634 . 3111 . 86 606 79 2865 . Ramming 144 | . . . . . . . . . . . . . . . . . . . . . . . 138 . . . . . . . . . . 6 . . . . . Kinetic 22086 | 94 831 88 2311 197 . 482 4053 577 1949 1452 52 . . . . . . . 594 102 27 26 83 . . . . . . . . . . . . . . 9168 . Thermal 15574 | . . . . . . . 255 327 140 . . . . . . . . 1309 397 . . . 2111 . 32 . . . . 68 73 . 31 . 44 . 41 7955 2791 Explosive 18839 | . . . 242 . . 623 707 472 1477 533 266 . 277 . 86 . . 496 . . . . . . . . . . . . . . . . . . . . 13660 Electromagnetic 1643 | . . . . . . . 36 . . . . . . . . . . . . 616 . . 56 . . . . . . . 238 . . . . . 123 574 . Impact 3760 | . . . . . . . . . . . . . . . . . . . . . . . 511 . 2218 289 . 368 . 374 . . . . . . . . . Slashing 9707 | . . . . . . . . . . . 1299 . . . 109 46 196 302 147 . 1566 85 48 . 325 . . . . 874 634 . 3111 . 86 606 79 194 . Piercing 4768 | . . . . . . . . . 89 427 448 . 486 49 536 62 . . . . . . . . . . . . . . . . . . . . . 2671 . Highest Corruption 12 | . 4 4 . . . . . . 1 1 1 1 1 1 3 3 . 5 5 5 5 . 9 12 11 . . . . . 3 3 . . . . . 12 . Average Corruption 3 | . 3 4 . . . . . . 1 1 1 1 1 1 1 3 . 5 5 5 4 . 7 8 6 . . . . . 1 3 . . . . . 8 . Corruption Purged 37 | . . . . . . . . . . . . . 1 . . . . . . . 5 . 6 1 11 . . . . . . . . . . . . 13 . Corruption Blocked 20 | . . . . . . . . . . . . . . . . . . . . . . . . . . . . . . . . . . . 5 1 . 14 . Effects 209 | . 17 38 . . . . . . 7 9 1 2 2 1 6 3 . 10 26 12 4 . 30 3 14 . . . . . 3 4 . . . . . 17 . Message Errors 52 | . 3 7 . . . . . . . 2 . 1 1 1 . 2 . 2 7 3 2 . 7 2 3 . . . . . 2 2 . . . . . 5 . Matter Fused 56 | . 7 10 . . . . . . 1 4 . . 1 . 1 . . 3 6 3 1 . 10 . 5 . . . . . . . . . . . . 4 . Heat Flow Errors 32 | . 1 8 . . . . . . 1 . 1 . . . 2 . . 1 1 2 1 . 8 . 3 . . . . . 1 . . . . . . 2 . Energy Discharges 15 | . 1 2 . . . . . . 2 . . . . . . 1 . 1 2 1 . . 1 . 1 . . . . . . . . . . . . 3 . Parts Rejected 3 | . . . . . . . . . . . . 1 . . . . . 1 . . . . 1 . . . . . . . . . . . . . . . . Parts Fused 1 | . . 1 . . . . . . . . . . . . . . . . . . . . . . . . . . . . . . . . . . . . . Data Loss (minor) 24 | . 4 5 . . . . . . 2 1 . . . . 2 . . 1 2 1 . . 2 . 1 . . . . . . . . . . . . 3 . Data Loss (major) 9 | . . 4 . . . . . . . . . . . . 1 . . . 2 . . . 1 . 1 . . . . . . . . . . . . . . Misfires 5 | . . . . . . . . . . . . . . . . . . . 1 2 . . . . . . . . . . . 2 . . . . . . . Alerts 8 | . 1 1 . . . . . . 1 . . . . . . . . 1 4 . . . . . . . . . . . . . . . . . . . . Misdirections 1 | . . . . . . . . . . . . . . . . . . . . . . . . 1 . . . . . . . . . . . . . . . Weapon Failures 3 | . . . . . . . . . . 2 . . . . . . . . 1 . . . . . . . . . . . . . . . . . . . . Overload Shots 8 | . . . . . . . . . . . . . . . . . . . . . . . . . . . . . . . . . . 1 1 . . 3 3 Overflow Damage 5524 | . . . 54 . . 6 39 26 53 72 325 . 60 . 29 . 42 240 89 . 488 55 296 . 1504 162 . 230 . 323 171 . 148 . . 53 9 314 736 Projectiles 283 | . . . 23 . . . . . . . . . . . . . . . 12 . . . 52 . 2 . . . . . . . . . . . . 171 23 Explosions 1238 | . . . 31 . . 6 39 26 9 70 27 . 4 . 6 . . 240 . . . . 21 . . . . . . . 11 . . . . . . 35 713 Melee 4003 | . . . . . . . . . 44 2 298 . 56 . 23 . 42 . 77 . 488 55 223 . 1502 162 . 230 . 323 160 . 148 . . 53 9 108 . Knockbacks 81 | . 2 . 10 . . . 22 3 22 . . . . . . . . . 7 2 . . 1 . 5 1 . 1 . 3 . . . . . . . 2 . Impact 11 | . . . . . . . . . . . . . . . . . . . . . . . 1 . 5 1 . 1 . 3 . . . . . . . . . Kinetic 63 | . 2 . 10 . . . 17 3 20 . . . . . . . . . 7 2 . . . . . . . . . . . . . . . . . 2 . Secondary 7 | . . . . . . . 5 . 2 . . . . . . . . . . . . . . . . . . . . . . . . . . . . . . Self-Inflicted Damage 813 | . . . . . . 47 67 42 104 111 . . 27 . 41 . . 166 . 90 . . . . . . . . . . 25 . . 3 . . . 90 . Shots 22 | . . . . . . 2 3 1 3 3 . . 1 . 1 . . 2 . 2 . . . . . . . . . . 3 . . . . . . 1 . Rammed 1 | . . . . . . . . . . . . . . . . . . . . . . . . . . . . . . . . . . 1 . . . . . Targets Rammed 5 | . . . . . . . . . . . . . . . . . . . . . . . 4 . . . . . . . . . . 1 . . . . . Kicked 4 | . . . . . . . . . . . . . . . . . . . . . . . 4 . . . . . . . . . . . . . . . . Crushed . | . . . . . . . . . . . . . . . . . . . . . . . . . . . . . . . . . . . . . . . . Highest Temperature 536 | . 152 276 213 16 . 34 536 318 225 128 235 . 2 . 269 . 11 266 317 220 151 . 232 . 482 . 182 24 294 328 227 2 96 80 62 73 156 287 168 Average Temperature 74 | . 39 87 39 8 . 10 117 78 27 40 81 . 2 . 128 . 7 68 87 77 62 . 55 . 97 . 111 11 93 67 75 2 38 36 17 27 67 111 70 Received Heat Transfer 4857 | . 333 . 183 . . 81 1044 345 549 630 75 . 108 . 54 . 123 345 154 36 . . 180 . 72 . . . . 18 . . 18 18 . 9 36 430 16 Effects 29 | . . 1 . . . . 20 1 1 . . . . . . . . . 1 . . . . . 3 . . . . 2 . . . . . . . . . Shutdowns 5 | . . . . . . . 3 . . . . . . . . . . . . . . . . . 2 . . . . . . . . . . . . . . Energy Bleed 7 | . . 1 . . . . 3 . 1 . . . . . . . . . . . . . . . 1 . . . . 1 . . . . . . . . . Interference 7 | . . . . . . . 5 1 . . . . . . . . . . 1 . . . . . . . . . . . . . . . . . . . . Matter Decay 1 | . . . . . . . 1 . . . . . . . . . . . . . . . . . . . . . . . . . . . . . . . . Short Circuit 2 | . . . . . . . 1 . . . . . . . . . . . . . . . . . . . . . . 1 . . . . . . . . . Damage (minor) 1 | . . . . . . . 1 . . . . . . . . . . . . . . . . . . . . . . . . . . . . . . . . Damage (major) 6 | . . . . . . . 6 . . . . . . . . . . . . . . . . . . . . . . . . . . . . . . . . Siege Activations 1 | . . . . . . . . . . . . . . . . . . . . . . . . . . . . . . . . . . . . . . 1 . Total Turns 60 | . . . . . . . . . . . . . . . . . . . . . . . . . . . . . . . . . . . . . . 60 . Longest Duration 60 | . . . . . . . . . . . . . . . . . . . . . . . . . . . . . . . . . . . . . . 60 . Robots Corrupted 27 | . . . . . . . . . . . . . . . . . . . . 4 . . 4 . 9 2 . 1 . 3 . . . . . . . 4 . Combat Hostiles 9 | . . . . . . . . . . . . . . . . . . . . 4 . . . . 1 . . 1 . . . . . . . . . 3 . Parts Fried 51 | . . . . . . . . . . . . . . . . . . . . 6 . . 9 . 20 3 . . . 3 . . . . . . . 10 . Impact Corruptions 65 | . . 1 . . . . . . . . . . . . . . . . . . . . 6 . 39 9 . 2 . 8 . . . . . . . . . Robots Melted 3 | . . . . . . . . . . . . . . . . . . . . . . . . . . . . . . . . . . . . . . 1 2 Combat Hostiles 3 | . . . . . . . . . . . . . . . . . . . . . . . . . . . . . . . . . . . . . . 1 2 Parts Melted 14 | . . . . . . . . . 1 . . . . . . . . . 3 . . . 6 . . . . . . . . . . . . . . 3 1 Heat Transferred 13288 | . . . . . . . 518 629 259 . . . . . . . . 850 888 . . . 2553 . 50 . . . . 100 50 . 50 . 37 . 37 5463 1804 Parts Sabotaged 2 | . . . . . . . . . . . . . . . . . . . . . . . 2 . . . . . . . . . . . . . . . . Parts Stolen . | . . . . . . . . . . . . . . . . . . . . . . . . . . . . . . . . . . . . . . . . Parts Stripped . | . . . . . . . . . . . . . . . . . . . . . . . . . . . . . . . . . . . . . . . . Power Chain Reactions 1 | . . . . . . . . . . . . . . . . . . . . 1 . . . . . . . . . . . . . . . . . . . Alert | -11 -10 -10 -9 -9 -9 -8 -8 -8 -8 -8 -7 -7 -7 -7 -7 -7 -6 -6 -6 -6 -6 -6 -5 -5 -5 -5 -5 -5 -4 -4 -4 -4 -3 -3 -2 -2 -1 -1 -1 ------- Run | Yrd Mat Min Mat Min Exi Min Mat Gar Mat Gar Fac Was Fac Low Low Zio Pro Fac Ext Cet Arc Hub Fac Was Fac Upp Upp Zhi Pro Fac Arm Lab Res Tes Res Qua Acc Com Ac0 Peak Influence 2078 | 10 178 93 719 232 . 216 848 1194 819 1514 1103 341 1617 . . . . 974 724 651 415 761 481 90 248 . . . . 224 407 . 208 1827 1103 2078 1393 513 . Initial 1246 | . 6 . . 142 . . 1 544 581 532 794 288 238 . . . . 44 426 308 180 . 299 60 63 . . . . 37 105 . . 83 1100 99 1246 271 . Average 398 | 4 67 21 419 216 . 97 430 940 672 1099 870 324 1043 . . . . 371 505 500 203 308 293 78 138 . . . . 129 104 . 67 1700 282 1735 994 205 . Maximum Alert Level 5 | . . . 3 1 . 1 3 4 3 4 4 1 5 . . . . 3 3 2 2 3 2 . 1 . . . . 1 2 . . 5 4 5 4 2 . Low Security (%) 50 | 100 100 100 6 24 . 74 18 . . . . . 7 . . . . 46 . . 35 58 19 100 73 . . . . 81 89 . 100 . 27 . . 94 . Level 1 18 | . . . 30 75 . 25 41 . . . . 100 13 . . . . 14 10 27 59 5 66 . 26 . . . . 18 9 . . . 64 . 16 3 . Level 2 15 | . . . 58 . . . 18 12 60 12 12 . 8 . . . . 10 89 72 4 14 13 . . . . . . . . . . . . . 5 1 . Level 3 9 | . . . 3 . . . 20 80 39 29 86 . 2 . . . . 28 . . . 21 . . . . . . . . . . . . . . 22 . . Level 4 4 | . . . . . . . . 6 . 57 . . 63 . . . . . . . . . . . . . . . . . . . . . 8 . 55 . . Level 5 . | . . . . . . . . . . . . . 4 . . . . . . . . . . . . . . . . . . . . . . . . . . High Security . | . . . . . . . . . . . . . . . . . . . . . . . . . . . . . . . . . . . . . . . . Max Security 1 | . . . . . . . . . . . . . . . . . . . . . . . . . . . . . . . . . . 99 . 99 . . . Squads Dispatched 128 | . 3 . 4 . . . 5 . 6 . 6 . 13 . . . . 7 6 1 . 7 12 . 7 . . . . 10 7 . 7 7 3 12 2 3 . Investigation 57 | . 3 . 2 . . . 1 . 1 . 3 . 6 . . . . 6 4 1 . 5 5 . 5 . . . . 4 2 . 5 . 1 . 2 1 . Extermination 12 | . . . . . . . . . . . 1 . 1 . . . . . . . . . 2 . 2 . . . . 2 2 . . . 1 . . 1 . Reinforcement 31 | . . . 1 . . . 2 . 3 . 1 . 3 . . . . 1 2 . . 2 5 . . . . . . 4 3 . 2 . 1 . . 1 . Assault 24 | . . . 1 . . . . . 2 . 1 . 2 . . . . . . . . . . . . . . . . . . . . 6 . 12 . . . Garrison 4 | . . . . . . . 2 . . . . . 1 . . . . . . . . . . . . . . . . . . . . 1 . . . . . Intercept . | . . . . . . . . . . . . . . . . . . . . . . . . . . . . . . . . . . . . . . . . Searches Triggered 1 | . . . . . . . . . . . . . . . . . . 1 . . . . . . . . . . . . . . . . . . . . . Construction Impeded 4 | . . . . . . . . . 1 . . . . . . . . . 2 . . 1 . . . . . . . . . . . . . . . . . Haulers Reinforced 2 | . . . . . . . . . . . . . 1 . . . . . . . . . 1 . . . . . . . . . . . . . . . . Active Scanning Responses . | . . . . . . . . . . . . . . . . . . . . . . . . . . . . . . . . . . . . . . . . Cargo Convoy Interrupts 3 | . . . . . . . . . . . . . . . . . . . . . . . 1 . 1 . . . . 1 . . . . . . . . . Stealth | -11 -10 -10 -9 -9 -9 -8 -8 -8 -8 -8 -7 -7 -7 -7 -7 -7 -6 -6 -6 -6 -6 -6 -5 -5 -5 -5 -5 -5 -4 -4 -4 -4 -3 -3 -2 -2 -1 -1 -1 --------- Run | Yrd Mat Min Mat Min Exi Min Mat Gar Mat Gar Fac Was Fac Low Low Zio Pro Fac Ext Cet Arc Hub Fac Was Fac Upp Upp Zhi Pro Fac Arm Lab Res Tes Res Qua Acc Com Ac0 Distress Signals 64 | . 1 . 5 . . . 8 . 3 . 1 . 5 . . . . 6 1 2 . 3 1 . 4 . . . . 3 1 . 8 . . 1 2 9 . Communications Jammed 116 | . . . . . . . . . . . . . . . . . . 3 . . . . 19 . 30 . . . . 3 10 . 38 . 5 4 4 . . Distress Signals 93 | . . . . . . . . . . . . . . . . . . 3 . . . . 19 . 11 . . . . 3 10 . 34 . 5 4 4 . . Times Spotted 803 | . 24 5 46 3 . 11 70 22 51 28 30 6 42 . 9 . 7 50 30 10 8 9 32 6 41 . . . 6 25 43 . 22 11 14 44 21 38 39 Peak Tracking Total 22 | . 6 3 5 3 . 4 6 6 6 5 7 3 9 . 3 . 3 16 10 5 1 5 7 6 8 . . . 5 6 19 . 5 11 10 22 13 13 14 Tactical Retreats 91 | . 2 . 1 2 . . 3 1 2 1 8 . 6 . 2 . 2 10 5 . . . . . 13 . . . 2 5 5 . 2 2 2 4 3 8 . Traps | -11 -10 -10 -9 -9 -9 -8 -8 -8 -8 -8 -7 -7 -7 -7 -7 -7 -6 -6 -6 -6 -6 -6 -5 -5 -5 -5 -5 -5 -4 -4 -4 -4 -3 -3 -2 -2 -1 -1 -1 ------- Run | Yrd Mat Min Mat Min Exi Min Mat Gar Mat Gar Fac Was Fac Low Low Zio Pro Fac Ext Cet Arc Hub Fac Was Fac Upp Upp Zhi Pro Fac Arm Lab Res Tes Res Qua Acc Com Ac0 Traps Triggered 63 | . 5 . 1 . . . 2 2 1 2 1 . . . . . . . 4 . . . 2 . 1 . . . . . . . . . . . . 42 . Indirectly . | . . . . . . . . . . . . . . . . . . . . . . . . . . . . . . . . . . . . . . . . Trap Hack Attempts 25 | . 25 . . . . . . . . . . . . . . . . . . . . . . . . . . . . . . . . . . . . . . Triggered . | . . . . . . . . . . . . . . . . . . . . . . . . . . . . . . . . . . . . . . . . Disarmed 1 | . . . . . . . . . . . 1 . . . . . . . . . . . . . . . . . . . . . . . . . . . . Reprogrammed 20 | . 3 . . . . . . . . . . . . . . . . . . . . . . . . . . . . . . . 11 . . . . 6 . Reused 53 | . . . . . . . . 2 . 4 8 . 3 . . . . 1 . . . . 6 . 8 . . . . 9 7 . 5 . . . . . . Traps Reconfigurated 127 | . . . . . . . 4 12 4 12 30 . 6 . . . . 5 1 . . . 8 . 14 . . . . 15 16 . . . . . . . . Traps Extracted 24 | . . . . . . . . . . . . . 6 . 2 5 . . . . . . . . 10 . . . . 1 . . . . . . . . . Installed 28 | . . . . . . . . . . 3 . . 3 . . 5 . . . . . . . . 12 . . . . 5 . . . . . . . . . Triggered 61 | . . . . . . . . 2 . 4 8 . 3 . 2 . . 1 . . . . 10 . 8 . . . 1 9 7 . 5 . . . . 1 . Most Traps Carried 9 | . . 4 4 4 4 4 4 4 4 4 4 4 6 6 9 9 9 6 6 6 6 6 6 6 6 4 4 4 4 5 . . . . . . . . . Objects Rigged 16 | . . . . . . . . . . . . . . . . . . 15 . . . . . . . . . . . . . . . . . . 1 . . Exploded 6 | . . . . . . . . . . . . . . . . . . 5 . . . . . . . . . . . . . . . . . . 1 . . Machines | -11 -10 -10 -9 -9 -9 -8 -8 -8 -8 -8 -7 -7 -7 -7 -7 -7 -6 -6 -6 -6 -6 -6 -5 -5 -5 -5 -5 -5 -4 -4 -4 -4 -3 -3 -2 -2 -1 -1 -1 ---------- Run | Yrd Mat Min Mat Min Exi Min Mat Gar Mat Gar Fac Was Fac Low Low Zio Pro Fac Ext Cet Arc Hub Fac Was Fac Upp Upp Zhi Pro Fac Arm Lab Res Tes Res Qua Acc Com Ac0 Machines Disabled 75 | . . . 5 . . 1 7 1 5 6 . . 2 . . . . 9 2 2 2 2 2 . . . . 1 . 1 6 1 2 6 . 4 2 5 1 Max in Single Turn 5 | . . . 1 . . 1 1 1 1 1 . . . . . . . 5 . 2 . . 1 . . . . 1 . 1 1 1 1 1 . 1 1 2 1 Garrison Access 16 | . . . . . . . . . . . 1 . 3 . . . . 3 . . . . . . 3 . . . . 3 . . 2 . . . 1 . . Garrison Relay 2 | . . . . . . . . . . 2 . . . . . . . . . . . . . . . . . . . . . . . . . . . . . Phase Generator 1 | . . . . . . . . . . . . . . . . . . . . . . . . . . . . . . . . . . . . . . 1 . Network Hub 2 | . . . . . . . . . . . . . . . . . . . . . . 2 . . . . . . . . . . . . . . . . . Energy Cycler 1 | . . . . . . . . . . . . . . . . . . . . . . . . . . . . . . . 1 . . . . . . . . Machines Repaired . | . . . . . . . . . . . . . . . . . . . . . . . . . . . . . . . . . . . . . . . . Machines Dismantled . | . . . . . . . . . . . . . . . . . . . . . . . . . . . . . . . . . . . . . . . . Machines Sabotaged 2 | . . . . . . . . . . . . . . . . . . . . . . 2 . . . . . . . . . . . . . . . . . Overloaded Fab Kills . | . . . . . . . . . . . . . . . . . . . . . . . . . . . . . . . . . . . . . . . . Hacking | -11 -10 -10 -9 -9 -9 -8 -8 -8 -8 -8 -7 -7 -7 -7 -7 -7 -6 -6 -6 -6 -6 -6 -5 -5 -5 -5 -5 -5 -4 -4 -4 -4 -3 -3 -2 -2 -1 -1 -1 --------- Run | Yrd Mat Min Mat Min Exi Min Mat Gar Mat Gar Fac Was Fac Low Low Zio Pro Fac Ext Cet Arc Hub Fac Was Fac Upp Upp Zhi Pro Fac Arm Lab Res Tes Res Qua Acc Com Ac0 Machines Accessed 278 | . 9 1 13 . 2 . 16 2 11 3 18 . 24 1 2 . . 17 15 1 . 5 14 . 30 1 1 4 . 28 11 . 21 . 7 . 13 8 . Terminals 149 | . 7 1 10 . . . 10 2 7 3 7 . 11 . 1 . . 6 14 1 . 5 5 . 14 . . . . 10 8 . 9 . 3 . 9 6 . Fabricators 28 | . . . . . . . . . . . 4 . 5 . . . . 2 . . . . 2 . 5 . . . . 3 3 . 2 . 1 . 1 . . Repair Stations 20 | . 1 . . . . . 1 . 1 . 1 . 1 . . . . 2 . . . . 1 . 2 . . . . 4 . . 2 . 1 . 1 2 . Recycling Units 30 | . 1 . 2 . . . 2 . 2 . . . 3 . . . . 3 1 . . . 3 . 4 . . . . 5 . . 2 . 2 . . . . Scanalyzers 21 | . . . 1 . . . 2 . . . 3 . 2 . . . . 1 . . . . 3 . 2 . . . . 3 . . 3 . . . 1 . . Garrison Access 20 | . . . . . . . 1 . 1 . 3 . 2 . . . . 3 . . . . . . 3 . . . . 3 . . 3 . . . 1 . . Total Hacks 1179 | . 37 3 39 . 5 . 69 7 33 9 63 . 63 1 2 . . 54 43 6 . 17 95 . 165 1 1 17 . 121 80 . 113 . 48 . 46 41 . Successful 848 | . 21 3 25 . 5 . 43 2 21 3 42 . 39 1 2 . . 20 19 . . 8 68 . 136 1 1 17 . 111 58 . 104 . 37 . 30 31 . Failed 329 | . 16 . 14 . . . 26 5 12 6 21 . 24 . . . . 34 24 6 . 9 26 . 29 . . . . 10 22 . 8 . 11 . 16 10 . Catastrophic 42 | . . . 2 . . . 1 1 1 3 2 . 5 . . . . 8 6 1 . . 2 . 2 . . . . 1 2 . . . . . 3 2 . Database Lockouts 2 | . . . . . . . . . . . . . . . . . . . . . . . 1 . . . . . . . . . 1 . . . . . . Manual 533 | . 22 3 29 . 1 . 24 . 11 2 18 . 25 . . . . 20 15 1 . 14 47 . 82 . . . . 58 44 . 45 . 35 . 17 20 . Terminals 695 | . 32 3 33 . . . 37 7 26 9 26 . 26 . 1 . . 20 39 6 . 17 44 . 95 . . . . 53 51 . 74 . 30 . 34 32 . Fabricators 129 | . . . . . . . . . . . 14 . 13 . . . . 12 . . . . 11 . 24 . . . . 13 29 . 6 . 1 . 6 . . Repair Stations 65 | . 1 . . . . . 2 . 2 . 2 . 2 . . . . 6 . . . . 3 . 10 . . . . 14 . . 8 . 4 . 2 9 . Recycling Units 117 | . 4 . 3 . . . 6 . 4 . . . 11 . . . . 9 4 . . . 16 . 15 . . . . 22 . . 10 . 13 . . . . Scanalyzers 112 | . . . 3 . . . 20 . . . 15 . 7 . . . . 4 . . . . 21 . 16 . . . . 15 . . 8 . . . 3 . . Garrison Access 35 | . . . . . . . 4 . 1 . 6 . 4 . . . . 3 . . . . . . 5 . . . . 4 . . 7 . . . 1 . . Terminal Hacks 303 | . 8 3 7 . 5 . 11 2 10 3 8 . 4 1 2 . . 2 12 . . 3 19 . 45 1 1 17 . 32 20 . 44 . 15 . 13 15 . Record 10 | . . . . . 4 . . . . . . . . . 1 . . . . . . . . . . . . 5 . . . . . . . . . . . Part Schematic 37 | . 1 1 . . . . . . . . . . . . . . . . 1 . . . 4 . 7 . . 4 . 10 1 . 5 . 2 . 1 . . Robot Schematic 9 | . . 1 . . . . . . . . . . . . . . . . . . . . . . 2 . . . . . . . 5 . . . . 1 . Robot Analysis 13 | . 1 1 . . . . 1 . 1 . . . . . . . . . . . . . . . 2 . . 4 . 1 . . . . . . . 2 . Prototype ID Bank 33 | . 3 . 2 . . . 4 . 2 . . . 1 . . . . . . . . . . . 7 . . 4 . 1 2 . 4 . . . . 3 . Open Door 15 | . . . . . . . . . . . . . . 1 1 . . . 7 . . . . . . 1 1 . . . 1 . . . . . 3 . . Open DSF 1 | . . . . . . . . . . . 1 . . . . . . . . . . . . . . . . . . . . . . . . . . . . Level Access Points 5 | . . . . . . . . . . . . . . . . . . . . . . . 1 . 1 . . . . 1 1 . 1 . . . . . . Branch Access Points 9 | . . . . . . . . . 1 . 1 . 1 . . . . 1 . . . . 1 . 1 . . . . 1 . . 1 . 1 . . . . Emergency Access Points 11 | . 1 . . . . . . . . 1 . . . . . . . . . . . . 1 . 1 . . . . 2 1 . 3 . 1 . . . . Machine Index 7 | . . . . . . . . . . . . . . . . . . . . . . . 1 . 1 . . . . 1 1 . 2 . 1 . . . . Terminal Index 9 | . . . 1 . . . 1 . 1 . 1 . 1 . . . . . . . . . 1 . 1 . . . . . 1 . . . . . . 1 . Recycling Unit Index 1 | . . . . . . . . . . . . . . . . . . . . . . . 1 . . . . . . . . . . . . . . . . Garrison Index 2 | . . . . . . . . . . . . . . . . . . . . . . . 1 . . . . . . . 1 . . . . . . . . Alert Level 2 | . . . 1 . . . 1 . . . . . . . . . . . . . . . . . . . . . . . . . . . . . . . . Unreport Threat 39 | . 1 . 2 . . . . . 3 . 3 . . . . . . . 3 . . 1 2 . 1 . . . . . 2 . 2 . 7 . 9 3 . Locate Traps 18 | . 1 . . . . . 1 . 1 . 1 . . . . . . 1 1 . . 1 . . 3 . . . . 1 2 . 3 . 1 . . 1 . Disarm Traps 1 | . . . . . . . . . . . 1 . . . . . . . . . . . . . . . . . . . . . . . . . . . . Reprogram Traps 3 | . . . . . . . . . . . . . . . . . . . . . . . . . . . . . . . . . 2 . . . . 1 . Dispatch Records 1 | . . . . . . . . . . . . . . . . . . . . . . . . . . . . . . . . . 1 . . . . . . Security Status 1 | . . . . . . . . . . . . . . . . . . . . . . . 1 . . . . . . . . . . . . . . . . Patrol Status 1 | . . . . . . . . . . . . . . . . . . . . . . . . . . . . . . . . . 1 . . . . . . Investigation Status 1 | . . . . . . . . . . . . . . . . . . . . . . . . . . . . . . . . . 1 . . . . . . Extermination Status 1 | . . . . . . . . . . . . . . . . . . . . . . . . . 1 . . . . . . . . . . . . . . Reinforcement Status 1 | . . . . . . . . . . . . . . . . . . . . . . . . . . . . . . . . . 1 . . . . . . Recall Investigation 7 | . . . . . . . 1 . . . . . . . . . . . . . . . 1 . 3 . . . . . 1 . 1 . . . . . . Recall Extermination 6 | . . . . . . . . . . . . . . . . . . . . . . . 1 . 2 . . . . 2 1 . . . . . . . . Recall Reinforcements 3 | . . . . . . . . . . . . . . . . . . . . . . . . . . . . . . . 1 . 2 . . . . . . Hauler Manifests 9 | . . . . . . . . . . . . . . . . . . . . . . . 1 . 4 . . . . 2 . . 2 . . . . . . Registered Components 9 | . . . . . . . 1 . . . . . 1 . . . . . . . . . 1 . 1 . . . . 1 1 . 1 . 1 . . 1 . Registered Prototypes 3 | . . . . . . . . . . . . . . . . . . . . . . . . . 1 . . . . 1 . . 1 . . . . . . Zone Layout 28 | . . . 1 . . . 1 . 1 . . . . . . . . . . . . 1 1 . 6 . . . . 8 3 . 5 . 1 . . . . Garrison Registry 2 | . . . . . . . . 1 . 1 . . . . . . . . . . . . . . . . . . . . . . . . . . . . . Patrol Navigation 1 | . . . . . . . . 1 . . . . . . . . . . . . . . . . . . . . . . . . . . . . . . . Security Stations 1 | . . . . . . . . . . 1 . . . . . . . . . . . . . . . . . . . . . . . . . . . . . Derelict Proto ID Bank 1 | . . . . . 1 . . . . . . . . . . . . . . . . . . . . . . . . . . . . . . . . . . Disengage Seal 2 | . . . . . . . . . . . . . . . . . . . . . . . . . . . . . . . . . . . . . . 2 . Fabricator Hacks 66 | . . . . . . . . . . . 5 . 5 . . . . 4 . . . . 6 . 12 . . . . 5 20 . 5 . . . 4 . . Network Status 7 | . . . . . . . . . . . 1 . . . . . . 1 . . . . 1 . 1 . . . . 1 1 . 1 . . . . . . Load Schematic 32 | . . . . . . . . . . . 3 . 4 . . . . 2 . . . . 2 . 5 . . . . 2 10 . 2 . . . 2 . . Build 27 | . . . . . . . . . . . 1 . 1 . . . . 1 . . . . 3 . 6 . . . . 2 9 . 2 . . . 2 . . Repair Station Hacks 48 | . 1 . . . . . 2 . 1 . 1 . . . . . . . . . . . 2 . 8 . . . . 11 . . 8 . 4 . 2 8 . Scan Component 24 | . . . . . . . 1 . 1 . . . . . . . . . . . . . 1 . 4 . . . . 6 . . 4 . 2 . 1 4 . Repair 22 | . . . . . . . 1 . . . . . . . . . . . . . . . 1 . 4 . . . . 5 . . 4 . 2 . 1 4 . Refit 2 | . 1 . . . . . . . . . 1 . . . . . . . . . . . . . . . . . . . . . . . . . . . . Recycling Unit Hacks 43 | . 2 . 2 . . . 6 . 3 . . . 4 . . . . 2 1 . . . 5 . 4 . . . . 7 . . 3 . 4 . . . . Recycle Component 1 | . . . . . . . 1 . . . . . . . . . . . . . . . . . . . . . . . . . . . . . . . . Process 2 | . . . . . . . 2 . . . . . . . . . . . . . . . . . . . . . . . . . . . . . . . . Report Inventory 27 | . 1 . 2 . . . 1 . 2 . . . 2 . . . . 2 1 . . . 3 . 4 . . . . 5 . . 2 . 2 . . . . Retrieve Matter 1 | . . . . . . . 1 . . . . . . . . . . . . . . . . . . . . . . . . . . . . . . . . Retrieve Components 12 | . 1 . . . . . 1 . 1 . . . 2 . . . . . . . . . 2 . . . . . . 2 . . 1 . 2 . . . . Scanalyzer 96 | . . . 2 . . . 16 . . . 15 . 6 . . . . . . . . . 17 . 15 . . . . 14 . . 8 . . . 3 . . Insert Component 45 | . . . 1 . . . 8 . . . 7 . 3 . . . . . . . . . 7 . 7 . . . . 7 . . 4 . . . 1 . . Analyze 51 | . . . 1 . . . 8 . . . 8 . 3 . . . . . . . . . 10 . 8 . . . . 7 . . 4 . . . 2 . . Garrison Access Hacks 26 | . . . . . . . 1 . 1 . 5 . 4 . . . . 3 . . . . . . 3 . . . . 4 . . 4 . . . 1 . . Unlock Access 4 | . . . . . . . 1 . 1 . 2 . . . . . . . . . . . . . . . . . . . . . . . . . . . . Seal Access 15 | . . . . . . . . . . . 1 . 2 . . . . 3 . . . . . . 3 . . . . 3 . . 2 . . . 1 . . Coupler Status 7 | . . . . . . . . . . . 2 . 2 . . . . . . . . . . . . . . . . 1 . . 2 . . . . . . Unauthorized Hacks 266 | . 10 . 14 . . . 7 . 6 . 8 . 16 . . . . 9 6 . . 5 19 . 49 . . . . 38 18 . 32 . 14 . 7 8 . Terminals 159 | . 10 . 12 . . . 7 . 6 . 5 . 6 . . . . 3 6 . . 5 6 . 25 . . . . 16 12 . 21 . 5 . 6 8 . Track 38 | . 1 . 2 . . . 1 . . . 1 . . . . . . . . . . . 1 . 10 . . . . 5 4 . 7 . 1 . 2 3 . Assimilate 15 | . . . . . . . . . . . 2 . . . . . . 1 . . . . 1 . 3 . . . . 3 2 . 3 . . . . . . Botnet 22 | . 2 . 2 . . . 1 . . . . . . . . . . . 2 . . . 1 . 2 . . . . 2 2 . 4 . 1 . 1 2 . Detonate 3 | . . . . . . . . . . . . . . . . . . 2 . . . . . . . . . . . . . . . . . . 1 . . Disrupt 4 | . . . . . . . . . . . . . . . . . . . . . . . 1 . 1 . . . . . . . 1 . 1 . . . . Operators 7 | . 1 . . . . . . . . . . . . . . . . . . . . . 1 . 2 . . . . 1 . . 1 . 1 . . . . Skim 65 | . 6 . 8 . . . 5 . 6 . 2 . 6 . . . . . 4 . . . 1 . 7 . . . . 5 4 . 5 . 1 . 2 3 . Sabotage 5 | . . . . . . . . . . . . . . . . . . . . . . 5 . . . . . . . . . . . . . . . . . Fabricators 38 | . . . . . . . . . . . 3 . 3 . . . . 3 . . . . 4 . 10 . . . . 6 6 . 1 . 1 . 1 . . Report 4 | . . . . . . . . . . . . . . . . . . . . . . . . . 2 . . . . 1 1 . . . . . . . . Prioritize 17 | . . . . . . . . . . . 1 . . . . . . 1 . . . . 2 . 5 . . . . 3 3 . 1 . . . 1 . . Liberate 5 | . . . . . . . . . . . . . . . . . . . . . . . 1 . 2 . . . . 1 1 . . . . . . . . Haulers 5 | . . . . . . . . . . . 1 . . . . . . . . . . . 1 . 1 . . . . 1 1 . . . . . . . . Recompile 7 | . . . . . . . . . . . 1 . 3 . . . . 2 . . . . . . . . . . . . . . . . 1 . . . . Repair Stations 5 | . . . . . . . . . . . . . 1 . . . . . . . . . 1 . 1 . . . . 2 . . . . . . . . . Mechanics 3 | . . . . . . . . . . . . . . . . . . . . . . . . . 1 . . . . 2 . . . . . . . . . Patch 2 | . . . . . . . . . . . . . 1 . . . . . . . . . 1 . . . . . . . . . . . . . . . . Recycling Units 58 | . . . 1 . . . . . . . . . 6 . . . . 3 . . . . 8 . 11 . . . . 14 . . 7 . 8 . . . . Monitor 7 | . . . . . . . . . . . . . . . . . . . . . . . 1 . 1 . . . . 2 . . 1 . 2 . . . . Reject 17 | . . . . . . . . . . . . . 2 . . . . . . . . . 2 . 4 . . . . 5 . . 2 . 2 . . . . Recyclers 11 | . . . . . . . . . . . . . 1 . . . . . . . . . 2 . 2 . . . . 2 . . 2 . 2 . . . . Mask 23 | . . . 1 . . . . . . . . . 3 . . . . 3 . . . . 3 . 4 . . . . 5 . . 2 . 2 . . . . Scanalyzers 1 | . . . 1 . . . . . . . . . . . . . . . . . . . . . . . . . . . . . . . . . . . . Extract 1 | . . . 1 . . . . . . . . . . . . . . . . . . . . . . . . . . . . . . . . . . . . Garrison Access 5 | . . . . . . . . . . . . . . . . . . . . . . . . . 2 . . . . . . . 3 . . . . . . Broadcast 1 | . . . . . . . . . . . . . . . . . . . . . . . . . 1 . . . . . . . . . . . . . . Restock 1 | . . . . . . . . . . . . . . . . . . . . . . . . . . . . . . . . . 1 . . . . . . Reprogram 2 | . . . . . . . . . . . . . . . . . . . . . . . . . 1 . . . . . . . 1 . . . . . . Watchers 1 | . . . . . . . . . . . . . . . . . . . . . . . . . . . . . . . . . 1 . . . . . . Data Cores Recovered 7 | . . . 2 . . . 2 . . . 1 . . . . . . . 1 . . . . . 1 . . . . . . . . . . . . . . Used . | . . . . . . . . . . . . . . . . . . . . . . . . . . . . . . . . . . . . . . . . Hacking Detections 201 | . 7 1 13 . . . 15 2 10 3 17 . 22 . . . . 13 10 1 . 3 10 . 19 . . . . 17 7 . 12 . 5 . 8 6 . Full Trace Events 39 | . 2 . 1 . . . 1 1 2 1 2 . 1 . . . . 4 4 1 . . 4 . 5 . . . . 4 2 . 2 . . . 2 . . Feedback Events 1 | . . . . . . . . . . . . . . . . . . . . . . . . . . . . . . . . . . . . . 1 . . Hackware Fried 1 | . . . . . . . . . . . . . . . . . . . . . . . . . . . . . . . . . . . . . 1 . . Feedback Blocked . | . . . . . . . . . . . . . . . . . . . . . . . . . . . . . . . . . . . . . . . . Robot Schematics Acquired 9 | . . 1 . . . . . . . . . . . . . . . . . . . . . . 2 . . . . . . . 5 . . . . 1 . Robots Built 5 | . . . . . . . . . . . . . 3 . . . . . . . . . . . . . . . . . . . 2 . . . . . . Authchips . | . . . . . . . . . . . . . . . . . . . . . . . . . . . . . . . . . . . . . . . . Time 135 | . . . . . . . . . . . . . 67 . . . . . . . . . . . . . . . . . . . 68 . . . . . . Total Robot Build Rating 28 | . . . . . . . . . . . . . 12 . . . . . . . . . . . . . . . . . . . 16 . . . . . . Part Schematics Acquired 79 | . 1 1 3 . . . 7 . . . 7 . 3 . . . . . 1 . . . 9 . 14 . . 4 . 16 1 . 8 . 2 . 2 . . Parts Built 30 | . . . . . . . . . . . 1 . . . . . . 1 . . . . 4 . 9 . . . . 3 9 . 2 . . . 1 . . Authchips 11 | . . . . . . . . . . . 1 . . . . . . 1 . . . . . . . . . . . . 8 . . . . . 1 . . Time 1106 | . . . . . . . . . . . 26 . . . . . . 53 . . . . 129 . 254 . . . . 84 463 . 29 . . . 68 . . Total Part Build Rating 216 | . . . . . . . . . . . 6 . . . . . . 6 . . . . 26 . 67 . . . . 23 65 . 14 . . . 9 . . Parts Repaired 22 | . . . . . . . 1 . . . . . . . . . . . . . . . 1 . 4 . . . . 5 . . 4 . 2 . 1 4 . Time 1159 | . . . . . . . 32 . . . . . . . . . . . . . . . 136 . 249 . . . . 283 . . 154 . 179 . 26 100 . Parts Recycled 1 | . . . . . . . 1 . . . . . . . . . . . . . . . . . . . . . . . . . . . . . . . . Recycled Matter 65 | . . . . . . . 65 . . . . . . . . . . . . . . . . . . . . . . . . . . . . . . . . Retrieved Matter 65 | . . . . . . . 65 . . . . . . . . . . . . . . . . . . . . . . . . . . . . . . . . Retrieved Components 45 | . 9 . . . . . 10 . 10 . . . 3 . . . . . . . . . 4 . . . . . . 5 . . 1 . 3 . . . . Parts Scanalyzed 42 | . . . 1 . . . 8 . . . 7 . 3 . . . . . . . . . 7 . 6 . . . . 6 . . 3 . . . 1 . . Part Schematics Acquired 40 | . . . 1 . . . 7 . . . 7 . 3 . . . . . . . . . 5 . 7 . . . . 6 . . 3 . . . 1 . . Parts Damaged 3 | . . . . . . . . . . . . . . . . . . . . . . . 1 . . . . . . 1 . . 1 . . . . . . Bothacking | -11 -10 -10 -9 -9 -9 -8 -8 -8 -8 -8 -7 -7 -7 -7 -7 -7 -6 -6 -6 -6 -6 -6 -5 -5 -5 -5 -5 -5 -4 -4 -4 -4 -3 -3 -2 -2 -1 -1 -1 ------------ Run | Yrd Mat Min Mat Min Exi Min Mat Gar Mat Gar Fac Was Fac Low Low Zio Pro Fac Ext Cet Arc Hub Fac Was Fac Upp Upp Zhi Pro Fac Arm Lab Res Tes Res Qua Acc Com Ac0 Used RIF Installer 4 | . . . . . . . . 2 . 2 . . . . . . . . . . . . . . . . . . . . . . . . . . . . . Zone Cloak 1 | . . . . . . . . . . 1 . . . . . . . . . . . . . . . . . . . . . . . . . . . . . Robot Detection 1 | . . . . . . . . . . 1 . . . . . . . . . . . . . . . . . . . . . . . . . . . . . Patrol Navigation 1 | . . . . . . . . 1 . . . . . . . . . . . . . . . . . . . . . . . . . . . . . . . Robots Hacked 15 | . . . . . . . . . . . . 3 6 . . . . 2 1 . 1 . . . . . . . . . . . 2 . . . . . . Non-combat 7 | . . . . . . . . . . . . . 5 . . . . 2 . . . . . . . . . . . . . . . . . . . . . Combat 8 | . . . . . . . . . . . . 3 1 . . . . . 1 . 1 . . . . . . . . . . . 2 . . . . . . Robot Hacks Applied 15 | . . . . . . . . . . . . 3 6 . . . . 2 1 . 1 . . . . . . . . . . . 2 . . . . . . parse_system 4 | . . . . . . . . . . . . . . . . . . . 1 . 1 . . . . . . . . . . . 2 . . . . . . find_chute 1 | . . . . . . . . . . . . . . . . . . 1 . . . . . . . . . . . . . . . . . . . . . drop_inventory 3 | . . . . . . . . . . . . . 3 . . . . . . . . . . . . . . . . . . . . . . . . . . find_recycling 1 | . . . . . . . . . . . . . . . . . . 1 . . . . . . . . . . . . . . . . . . . . . purge_threat 1 | . . . . . . . . . . . . . 1 . . . . . . . . . . . . . . . . . . . . . . . . . . ignore_targets 3 | . . . . . . . . . . . . 3 . . . . . . . . . . . . . . . . . . . . . . . . . . . formatsys_high 2 | . . . . . . . . . . . . . 2 . . . . . . . . . . . . . . . . . . . . . . . . . . Relay Couplers Released 20 | . . . . . . . . . . 10 . . 4 . . . . 2 . . . . . . . . . . . . . . 4 . . . . . . Machine Destruction 17 | . . . . . . . . . . 10 . . 4 . . . . 2 . . . . . . . . . . . . . . 1 . . . . . . Programmers 3 | . . . . . . . . . . . . . . . . . . . . . . . . . . . . . . . . . 3 . . . . . . Attached 5 | . . . . . . . . . . . 1 . 4 . . . . . . . . . . . . . . . . . . . . . . . . . . Fabnet Peak Effective % . | . . . . . . . . . . . . . . . . . . . . . . . . . . . . . . . . . . . . . . . . Robots Rewired 15 | . . . . . . . . 5 . . . . . . . . . . 6 . . . . . . . . . . . 3 . . . . . 1 . . Allies Hacked 1 | . . . . . . . . . . . . . 1 . . . . . . . . . . . . . . . . . . . . . . . . . . Hacks Repelled . | . . . . . . . . . . . . . . . . . . . . . . . . . . . . . . . . . . . . . . . . Allies | -11 -10 -10 -9 -9 -9 -8 -8 -8 -8 -8 -7 -7 -7 -7 -7 -7 -6 -6 -6 -6 -6 -6 -5 -5 -5 -5 -5 -5 -4 -4 -4 -4 -3 -3 -2 -2 -1 -1 -1 -------- Run | Yrd Mat Min Mat Min Exi Min Mat Gar Mat Gar Fac Was Fac Low Low Zio Pro Fac Ext Cet Arc Hub Fac Was Fac Upp Upp Zhi Pro Fac Arm Lab Res Tes Res Qua Acc Com Ac0 Total Allies 82 | . . 5 . . . . . 5 . . 1 19 5 . . . . 1 17 5 . . 1 . 2 . . . . 5 4 . 5 . . . 4 3 . Largest Group 19 | . . 5 5 . . . . 4 3 . 1 19 19 . . . . . 9 7 6 5 1 . 1 . . . . 2 3 . 2 2 . . 3 3 . Highest-Rated Group 659 | . . 85 85 . . . . 150 110 . 10 465 465 . . . . . 287 659 514 480 26 . 26 . . . . 108 146 . 164 164 . . 379 376 . Highest-Rated Ally 219 | . . 31 31 . . . . 40 40 . 10 35 35 . . . . . 159 153 96 96 26 . 26 . . . . 54 68 . 83 82 . . 219 132 . Total Orders 21 | . . . . . . . . . . . . . . . . . . 2 . . 2 3 . . 2 3 . . . 5 . . 2 2 . . . . . STAY 8 | . . . . . . . . . . . . . . . . . . . . . 1 2 . . 1 . . . . 2 . . 1 1 . . . . . FOLLOW 6 | . . . . . . . . . . . . . . . . . . . . . 1 1 . . 1 . . . . 1 . . 1 1 . . . . . EXPLORE 3 | . . . . . . . . . . . . . . . . . . 2 . . . . . . . 1 . . . . . . . . . . . . . RETURN 4 | . . . . . . . . . . . . . . . . . . . . . . . . . . 2 . . . 2 . . . . . . . . . Ally Attacks 728 | . . 13 30 . . . . 23 30 . . 72 137 . . . . . 172 53 27 69 . . . . . . . 9 20 . 21 18 . . 28 6 . Total Damage 20287 | . . 169 319 . . . . 416 599 . . 2443 2741 . . . . . 3566 1649 1010 3094 . . . . . . . 180 700 . 851 529 . . 1984 37 . Kills 154 | . . 3 7 . . . . 3 10 . . 5 39 . . . . . 33 8 4 17 . . . . . . . 1 4 . 8 2 . . 10 . . Allies Corrupted 3 | . . . . . . . . . 1 . . . 1 . . . . . . . . 1 . . . . . . . . . . . . . . . . . Allies Melted 1 | . . . . . . . . . . . . . 1 . . . . . . . . . . . . . . . . . . . . . . . . . . Intel | -11 -10 -10 -9 -9 -9 -8 -8 -8 -8 -8 -7 -7 -7 -7 -7 -7 -6 -6 -6 -6 -6 -6 -5 -5 -5 -5 -5 -5 -4 -4 -4 -4 -3 -3 -2 -2 -1 -1 -1 ------- Run | Yrd Mat Min Mat Min Exi Min Mat Gar Mat Gar Fac Was Fac Low Low Zio Pro Fac Ext Cet Arc Hub Fac Was Fac Upp Upp Zhi Pro Fac Arm Lab Res Tes Res Qua Acc Com Ac0 Robot Analysis Total 13 | . 1 1 . . . . 1 . 1 . . . . . . . . . . . . . . . 2 . . 4 . 1 . . . . . . . 2 . Derelict Logs Recovered 6 | . . 1 . . . . . . . . . . . 1 . . 1 . . . . . . . . 1 1 . 1 . . . . . . . . . . Drone Launches 13 | . . . . . . . . . . . . . . . . . . 2 . . . . . . . 5 . . . 6 . . . . . . . . . Drone Recoveries 11 | . . . . . . . . . . . . . . . . . . . . . . . . . . 5 . . . 6 . . . . . . . . . Exploration | -11 -10 -10 -9 -9 -9 -8 -8 -8 -8 -8 -7 -7 -7 -7 -7 -7 -6 -6 -6 -6 -6 -6 -5 -5 -5 -5 -5 -5 -4 -4 -4 -4 -3 -3 -2 -2 -1 -1 -1 ------------- Run | Yrd Mat Min Mat Min Exi Min Mat Gar Mat Gar Fac Was Fac Low Low Zio Pro Fac Ext Cet Arc Hub Fac Was Fac Upp Upp Zhi Pro Fac Arm Lab Res Tes Res Qua Acc Com Ac0 Turns Passed 43263 | 87 1634 1354 3120 108 862 1310 2548 960 1826 1692 943 229 850 177 394 1371 196 464 1257 431 1248 274 1928 55 2834 322 163 52 287 1912 1263 175 988 171 438 210 249 7413 1468 Spaces Moved 36128 | 59 548 551 1192 31 358 500 1178 400 810 750 1932 231 1795 492 552 490 406 955 730 210 350 174 1834 156 3545 877 398 151 357 3158 1378 279 2056 475 794 640 813 4068 455 Core 236 | 2 . . . . . . . . . . 1 . . . . . . 87 95 . 18 . 1 . . . . . . . . . . . . . . . 32 Treads 5407 | . 437 551 1192 31 358 498 68 36 . 8 . . . . . . . . . . . . . . . . . . . . . . . . . . . 2228 . Legs 1944 | . . . . . . . . . . 366 . . . . . . . . 298 210 332 174 564 . . . . . . . . . . . . . . . . Wheels 3161 | 57 111 . . . . 2 1110 364 810 370 . . . . . . . . 337 . . . . . . . . . . . . . . . . . . . . Hover 1118 | . . . . . . . . . . . . . . . . 290 4 . . . . . . . . . . . . . . . . . . . . 401 423 Flight 24262 | . . . . . . . . . . 6 1931 231 1795 492 552 200 402 868 . . . . 1269 156 3545 877 398 151 357 3158 1378 279 2056 475 794 640 813 1439 . Fastest Speed 6 | 50 95 240 160 240 240 145 120 150 150 27 27 32 27 27 27 31 26 26 50 120 120 120 23 27 21 24 24 20 20 12 21 21 20 15 12 12 12 6 50 Average Speed 76 | 88 208 240 212 240 240 239 153 163 158 167 31 32 32 27 51 137 30 31 105 137 239 120 57 27 26 24 24 22 20 20 21 21 20 20 20 18 18 141 122 Slowest Speed 1450 | 95 240 240 240 240 240 240 320 400 165 240 500 32 108 27 95 240 176 250 190 190 1450 120 190 27 96 88 24 24 20 88 21 21 89 21 89 19 19 238 205 Overloaded Moves 387 | . . . . . . . . . . . . . . . . . . . . . . . . . 10 . . . . 7 . . . 7 8 16 86 75 178 Propulsion Burnouts . | . . . . . . . . . . . . . . . . . . . . . . . . . . . . . . . . . . . . . . . . Robots Hopped 123 | . . . . . . . . . . . 8 . 14 . 1 . 1 6 . . . . 1 . 11 . . . . 34 3 . 4 1 10 5 10 14 . Cave-ins Triggered 1 | . . . . . . . . . . . . . . . . . . . . . . . . . . . . . . . . . . . . . . 1 . Teleports 1 | . . . . . . . . . . . . . . . . . . . . . . . . . . . . . . . . . . . . . . 1 . Exploration Rate (%) 60 | 5 96 88 79 10 70 98 89 58 66 83 50 89 61 70 67 14 61 38 59 65 98 18 38 99 72 84 54 60 54 60 51 93 63 60 21 71 21 55 25 Regions Visited 39 Branch Regions 22 Pre-discovered Areas 11 | . . 1 2 . 1 . 1 . . . . . . 1 . . . . . . . . . . 1 . . 3 . 1 . . . . . . . . . Known Exits Taken 18 | . . . . . . 1 1 . 1 . . . 1 . . . 1 1 . . . . . . 1 1 1 1 1 1 . 1 1 1 1 1 1 . . Unknown Exits Taken 15 | 1 1 1 1 1 1 . . . . . . . . 1 1 1 . . 1 1 1 1 . . . . . . . . 1 . . . . . . 1 . Scrap Searched 18 | . . 1 . . . 1 . . . . . . . 5 2 . 1 . . . . . . . . 4 2 . 2 . . . . . . . . . . Spaces Dug 574 | . . . . . . 25 33 21 28 22 34 . 23 11 9 1 15 12 6 . . . 16 . 86 3 5 . 15 62 9 . 19 6 35 7 9 56 6 Terrain Destroyed 1297 | . 3 . 21 . . 73 85 23 59 29 34 . 40 11 9 1 15 180 18 2 . . 28 . 89 3 5 . 15 64 34 . 19 8 36 7 9 147 230 Melee 147 | . . . . . . . . . 7 1 18 . 11 11 2 1 15 8 . . . . 12 . 30 3 1 . . 7 6 . 10 . 3 . . 1 . Projectile 397 | . 3 . 10 . . . 35 . . . . . . . . . . 4 18 2 . . 16 . 59 . 4 . 15 57 3 . 9 8 33 7 9 75 30 AOE 752 | . . . 11 . . 73 50 23 52 28 16 . 29 . 7 . . 168 . . . . . . . . . . . . 25 . . . . . . 70 200 Terrain Rammed . | . . . . . . . . . . . . . . . . . . . . . . . . . . . . . . . . . . . . . . . . Walls Destroyed . | . . . . . . . . . . . . . . . . . . . . . . . . . . . . . . . . . . . . . . . . Machines Disabled . | . . . . . . . . . . . . . . . . . . . . . . . . . . . . . . . . . . . . . . . . Actions | -11 -10 -10 -9 -9 -9 -8 -8 -8 -8 -8 -7 -7 -7 -7 -7 -7 -6 -6 -6 -6 -6 -6 -5 -5 -5 -5 -5 -5 -4 -4 -4 -4 -3 -3 -2 -2 -1 -1 -1 --------- Run | Yrd Mat Min Mat Min Exi Min Mat Gar Mat Gar Fac Was Fac Low Low Zio Pro Fac Ext Cet Arc Hub Fac Was Fac Upp Upp Zhi Pro Fac Arm Lab Res Tes Res Qua Acc Com Ac0 Total 48680 | 79 949 577 1617 45 363 569 1630 627 1220 1033 2165 383 2010 513 617 1170 461 1089 1127 334 740 237 2537 168 5230 976 458 165 557 4273 2286 394 2492 524 1022 697 889 5178 1279 Wait 8323 | 1 269 13 265 . . 30 179 24 252 77 92 130 144 . 22 643 21 63 163 80 353 46 436 11 1406 78 51 1 184 966 796 81 260 1 167 30 62 285 641 Move 35861 | 58 547 550 1191 30 357 499 1177 399 810 749 1917 230 1768 491 549 489 403 944 729 209 349 173 1832 155 3522 876 397 150 356 3095 1372 278 2047 473 775 629 792 4039 455 Hop 108 | . . . . . . . . . . . 7 . 12 . 1 . 1 4 . . . . 1 . 11 . . . . 28 2 . 4 1 8 5 10 13 . Pick Up 478 | 7 24 4 18 1 2 2 17 7 9 13 23 2 9 1 4 3 3 12 20 9 5 5 27 1 30 3 1 2 . 15 9 8 15 3 7 1 5 132 19 Fast Attach 354 | 7 1 . 8 . . 2 17 12 9 9 12 7 7 . 4 4 4 16 22 3 3 . 34 . 20 3 2 2 . 17 16 6 24 10 9 4 2 56 2 Attach 172 | . 5 . 1 1 . 1 7 3 1 4 10 2 3 3 4 5 3 5 1 1 1 . 13 . 10 1 1 . . 9 4 4 6 . 2 1 1 45 14 Detach 78 | . 1 . . . . . 1 . 2 . 6 . 2 2 1 2 1 5 4 . . 1 6 . 3 . . . . 5 1 2 1 1 . . . 21 10 Swap 365 | . 8 2 13 . 1 4 30 21 26 22 12 . 7 . 2 8 . 3 11 6 5 5 17 . 51 4 . 2 1 22 22 . 12 5 3 . 2 23 15 Drop 668 | . 12 4 31 . 3 2 33 15 21 22 25 8 16 1 3 4 8 17 20 11 8 5 47 1 39 6 1 5 1 23 14 12 37 13 12 5 2 161 20 Fire 1388 | 6 57 4 90 13 . 29 169 50 81 92 8 4 13 . 1 . . 4 69 15 1 1 80 . 63 . 4 . 15 62 10 . 12 10 35 12 11 264 103 Melee 512 | . . . . . . . . . 9 26 53 . 26 15 26 7 17 16 5 . 15 1 22 . 63 5 1 3 . 26 27 3 74 7 4 10 1 50 . Ram . | . . . . . . . . . . . . . . . . . . . . . . . . . . . . . . . . . . . . . . . . Kick 4 | . . . . . . . . . . . . . . . . . . . . . . . 4 . . . . . . . . . . . . . . . . Crush . | . . . . . . . . . . . . . . . . . . . . . . . . . . . . . . . . . . . . . . . . Escape Stasis 162 | . . . . . . . . . . 16 . . . . . . . . 43 . . . 18 . . . . . . . . . . . . . . 85 . Rewire 154 | . . . . . . . . 96 . . . . . . . . . . 40 . . . . . . . . . . . 13 . . . . . 1 4 . Trap 53 | . 25 . . . . . . . . 3 . . 3 . . 5 . . . . . . . . 12 . . . . 5 . . . . . . . . . Miscellaneous . | . . . . . . . . . . . . . . . . . . . . . . . . . . . . . . . . . . . . . . . . Route ------- -11/Scrapyard -10/Materials (discovered 5 exits: *Mat x3 / *Min x2) -10/Mines (discovered 2 exits: *Mat x2) -9/Materials (discovered 6 exits: *Mat x3 / [*Min x2] / [*Sto]) -9/Mines (discovered 3 exits: Mat x2 / *Exi) -9/Exiles (discovered 2 exits: [*Min x2]) -8/Mines (discovered 2 exits: *Mat x2) -8/Materials (discovered 4 exits: *Fac x3 / Gar) -8/Garrison (discovered 3 exits: *Mat x3) -8/Materials (discovered 3 exits: *Fac x2 / Gar) -8/Garrison (discovered 3 exits: *Fac x3) -7/Factory (discovered 5 exits: *Fac / *Low x2 / Gar / Gar) -7/Waste -7/Factory (discovered 5 exits: *Fac x3 / *Low x2) -7/Lower Caves -7/Lower Caves (discovered 2 exits: *Fac / [*Zio]) -7/Zion -6/Proximity Caves -6/Factory (discovered 5 exits: *Fac / Low x2 / *Ext x2) -6/Extension (discovered 2 exits: *Fac / *Cet) -6/Cetus (discovered 2 exits: *Fac / [*Arc]) -6/Archives (discovered 3 exits: *Fac / *Hub x2) -6/Hub_04(d) (discovered 2 exits: *Fac x2) -5/Factory (discovered 6 exits: Fac x4 / Upp x2) -5/Waste -5/Factory (discovered 6 exits: *Fac x4 / *Upp x2) -5/Upper Caves -5/Upper Caves (discovered 2 exits: Fac / *Zhi) -5/Zhirov -4/Proximity Caves -4/Factory (discovered 7 exits: *Res x4 / Upp x2 / *Arm) -4/Armory (discovered 3 exits: Res x2 / *Lab) -4/Lab -3/Research (discovered 5 exits: *Res x3 / *Tes x2) -3/Testing -2/Research (discovered 5 exits: Acc x3 / *Qua x2) -2/Quarantine -1/Access (discovered 2 exits: Sur / *Com) -1/Command (discovered 3 exits: *Sur x2 / [*Ac0]) -1/Access_0 History --------- Turn | Location | Event 18 | -11/Scrapyard | Discovered new exit (range 16) 88 | -11/Scrapyard | Entered Materials 310 | -10/Materials | Build established: Mutant 484 | -10/Materials | Lost 3 parts (2n1w) 565 | -10/Materials | Discovered new exit (range 9) 661 | -10/Materials | Discovered new exit (range 14) 1053 | -10/Materials | Core integrity fell below 50% 1068 | -10/Materials | Discovered new exit (range 11) 1228 | -10/Materials | Discovered new exit (range 5) 1522 | -10/Materials | Discovered new exit (range 16) 1722 | -10/Materials | Entered Mines 1727 | -10/Mines | Discovered new exit (range 6) 1887 | -10/Mines | Discovered new exit (range 5) 1995 | -10/Mines | Found a hidden stash of uninstalled traps 2448 | -10/Mines | Learned location of Zion (-7) 2493 | -10/Mines | Assisted by bots powering up and referring to "LRC-V3" 3076 | -10/Mines | Entered Materials 3076 | -9/Materials | Accompanied by 5 allies 3076 | -9/Materials | Evolved 2 slots: Propulsion x1, Utility x1 3081 | -9/Materials | Led the pair of lost Derelicts to an unsafe place 3325 | -9/Materials | Discovered new exit (range 15) 3764 | -9/Materials | Discovered new exit (range 8) 3828 | -9/Materials | Discovered new exit (range 16) 3876 | -9/Materials | First assault squad dispatched 4144 | -9/Materials | Discovered new exit (range 9) 4395 | -9/Materials | Learned Storage stockpile data 4472 | -9/Materials | Learned 2 Storage zone layouts 4539 | -9/Materials | Learned location of Recycling (-9) 4596 | -9/Materials | Identified exit to Materials 4604 | -9/Materials | Discovered exit to Materials (range 16) 4728 | -9/Materials | Learned Storage stockpile data 6196 | -9/Materials | Entered Mines 6197 | -9/Mines | Assembled infested the area 6198 | -9/Mines | Met a Derelict bent on vengeance 6290 | -9/Mines | Deemed a non-threat by the Exiles lab entrance 6292 | -9/Mines | Discovered new exit (range 5) 6304 | -9/Mines | Entered Exiles 6340 | -9/Exiles | Discovered new exit (range 15) 6369 | -9/Exiles | Met 8R-AWN 6400 | -9/Exiles | Met EX-HEX 6472 | -9/Exiles | Met EX-BIN 6501 | -9/Exiles | Aligned with FarCom system 6504 | -9/Exiles | Given EX-Vault access code 6564 | -9/Exiles | Opened EX-Vault 6581 | -9/Exiles | Found Trap Reconfigurator 6630 | -9/Exiles | Warned to stay clear of 0b10 Research branches 6707 | -9/Exiles | Met EX-DEC 6988 | -9/Exiles | Discovered new exit (range 14) 7166 | -9/Exiles | Left Exiles lab with Trap Reconfigurator 7166 | -9/Exiles | Entered Mines 7259 | -8/Mines | Destroyed 7 combat bots 8476 | -8/Mines | Entered Materials 8476 | -8/Materials | Evolved 2 slots: Propulsion x2 8911 | -8/Materials | Identified exit to Garrison 9104 | -8/Materials | Build established: Scavenger-Mutant 9184 | -8/Materials | Garrison activated, responded to threat 9314 | -8/Materials | Discovered new exit (range 16) 9317 | -8/Materials | Garrison activated, responded to threat 9588 | -8/Materials | Repaired Rnf. Ion Engine 9711 | -8/Materials | Discovered new exit (range 4) 9994 | -8/Materials | Learned location of Lower Caves (-7) 10088 | -8/Materials | Learned 2 Lower Caves zone layouts 10097 | -8/Materials | Destroyed 13 combat bots 10118 | -8/Materials | Learned Factory trap positions 10137 | -8/Materials | Learned Storage security intel 10166 | -8/Materials | Identified exit to Factory 10203 | -8/Materials | Learned Storage security intel 10425 | -8/Materials | Lost 3 parts (2n1w) 10628 | -8/Materials | Core integrity fell below 50% 11024 | -8/Materials | Entered Garrison 11049 | -8/Garrison | Discovered new exit (range 60) 11049 | -8/Garrison | Discovered new exit (range 92) 11049 | -8/Garrison | Discovered new exit (range 65) 11224 | -8/Garrison | Destroyed 8 combat bots 11349 | -8/Garrison | Spotted B-75 Beast 11448 | -8/Garrison | Spotted B-75 Beast 11482 | -8/Garrison | Destroyed B-75 Beast 11510 | -8/Garrison | Lost 4 parts (3n1u) 11585 | -8/Garrison | Installed Relay Interface Framework 11970 | -8/Garrison | Expanded RIF knowledge: Patrol Navigation 11984 | -8/Garrison | Entered Materials 11984 | -8/Materials | Accompanied by 3 allies 12384 | -8/Materials | First assault squad dispatched 12476 | -8/Materials | Lost 3 parts (1n1u1w) 13437 | -8/Materials | Discovered exit to Factory (range 16) 13514 | -8/Materials | Build established: Mutant 13582 | -8/Materials | Discovered exit to Factory (range 16) 13810 | -8/Materials | Identified exit to Garrison 13810 | -8/Materials | Entered Garrison 13917 | -8/Garrison | Discovered exit to Factory (range 8) 13929 | -8/Garrison | Garrison Relay disabled 13982 | -8/Garrison | Triggered checkpoint 14018 | -8/Garrison | Garrison Relay disabled 14295 | -8/Garrison | Build established: Scavenger-Mutant 14308 | -8/Garrison | Learned Factory security intel 14329 | -8/Garrison | Discovered exit to Factory (range 12) 14428 | -8/Garrison | Triggered checkpoint 14462 | -8/Garrison | Discovered exit to Factory (range 18) 14462 | -8/Garrison | Discovered exit to Factory (range 65) 14462 | -8/Garrison | Discovered exit to Factory (range 42) 14542 | -8/Garrison | Core integrity fell below 20% 14570 | -8/Garrison | Lost 3 parts (1p2n) 14734 | -8/Garrison | Triggered checkpoint 14846 | -8/Garrison | Expanded RIF knowledge: Zone Cloak 14906 | -8/Garrison | Triggered checkpoint 15060 | -8/Garrison | Triggered checkpoint 15158 | -8/Garrison | Expanded RIF knowledge: Robot Detection 15502 | -8/Garrison | Entered Factory 15502 | -7/Factory | Evolved 2 slots: Power x1, Utility x1 15503 | -7/Factory | Loaded intel: 101 trap records 15506 | -7/Factory | Identified exit to Garrison 15511 | -7/Factory | Identified exit to DSF 15518 | -7/Factory | Identified exit to Lower Caves 15529 | -7/Factory | Discovered new exit (range 11) 15908 | -7/Factory | Build established: Hacker-Sprinter 16032 | -7/Factory | Fabricated Nuclear Pulse Array? 16058 | -7/Factory | Identified exit to Garrison 16328 | -7/Factory | First assault squad dispatched 16445 | -7/Factory | Sucked down chute 16445 | -7/Factory | Entered Waste 16448 | -7/Waste | Found Prototype Hackware 16459 | -7/Waste | Spotted C-40 Crusher 16463 | -7/Waste | Spotted C-40 Crusher 16465 | -7/Waste | Spotted C-40 Crusher 16487 | -7/Waste | Spotted C-40 Crusher 16496 | -7/Waste | Warlord forces began an assault 16504 | -7/Waste | Build established: Sprinter 16524 | -7/Waste | Spotted C-40 Crusher 16537 | -7/Waste | Allies destroyed C-40 Crusher 16539 | -7/Waste | Spotted C-40 Crusher 16544 | -7/Waste | Allies destroyed C-40 Crusher 16547 | -7/Waste | Allies destroyed C-40 Crusher 16577 | -7/Waste | Discovered new exit (range 12) 16674 | -7/Waste | Entered Factory 16674 | -7/Factory | Accompanied by 19 allies 16869 | -7/Factory | Lost 5 allies 16887 | -7/Factory | Identified Exp. System Shield 17070 | -7/Factory | Lost 11 allies 17074 | -7/Factory | First assault squad dispatched 17114 | -7/Factory | Discovered new exit (range 16) 17189 | -7/Factory | Fabricated B-48 Gladiator? 17402 | -7/Factory | Discovered new exit (range 10) 17484 | -7/Factory | Identified exit to Factory 17524 | -7/Factory | Entered Lower Caves 17668 | -7/Lower Caves | Discovered new exit (range 13) 17701 | -7/Lower Caves | Entered another Lower Caves area 17771 | -7/Lower Caves | Discovered exit to Factory (range 15) 17913 | -7/Lower Caves | Lost 5 parts (3n1u1w) 17993 | -7/Lower Caves | Discovered new exit (range 14) 18060 | -7/Lower Caves | Core integrity fell below 50% 18095 | -7/Lower Caves | Entered Zion 18142 | -7/Zion | Received a visual enhancement algorithm 18147 | -7/Zion | Build established: Trapper-Mutant 18184 | -7/Zion | Discovered new exit (range 14) 18237 | -7/Zion | System corruption cleaned by Quarantine Array 18256 | -7/Zion | RIF detected upon attempting to enter Zion 18256 | -7/Zion | Attacked by Zionites 18627 | -7/Zion | Build established: Scavenger-Mutant 18714 | -7/Zion | Spotted KN-P6S(B) 18714 | -7/Zion | Spotted 6Q-AVL(B) 19466 | -7/Zion | Entered Proximity Caves 19542 | -6/Proximity Caves | Learned Factory terminal intel 19562 | -6/Proximity Caves | Spotted B-75 Beast 19659 | -6/Proximity Caves | Discovered exit to Factory (range 11) 19662 | -6/Proximity Caves | Entered Factory 19662 | -6/Factory | Evolved 2 slots: Utility x2 19663 | -6/Factory | Loaded intel: 27 terminal locations 19893 | -6/Factory | Fabricated Nuclear Pulse Array (x1) 19947 | -6/Factory | Identified exit to Lower Caves 19947 | -6/Factory | Identified exit to Extension 19968 | -6/Factory | Destroyed 7 combat bots 20005 | -6/Factory | Lost 4 parts (1n2u1w) 20012 | -6/Factory | Search patrols dispatched 20013 | -6/Factory | Discovered new exit (range 13) 20079 | -6/Factory | Lost 4 parts (3n1u) 20090 | -6/Factory | Core integrity fell below 50% 20107 | -6/Factory | Core integrity fell below 20% 20126 | -6/Factory | Entered Extension 20173 | -6/Extension | Rescued a captive Derelict 20194 | -6/Extension | Rescued a captive Derelict 20196 | -6/Extension | Rescued a captive Derelict 20301 | -6/Extension | Build established: Hacker-Mutant 20413 | -6/Extension | Rescued a captive Derelict 20414 | -6/Extension | Rescued a captive Derelict 20584 | -6/Extension | Rescued a captive Derelict 20584 | -6/Extension | Rescued a captive Derelict 20601 | -6/Extension | Disrupted transfer network 20621 | -6/Extension | Rescued a captive Derelict 20622 | -6/Extension | Rescued a captive Derelict 20770 | -6/Extension | Lost 3 allies 20778 | -6/Extension | Rescued a captive Derelict 20932 | -6/Extension | Rescued A7 20995 | -6/Extension | Lost 3 allies 21121 | -6/Extension | Build established: Scavenger-Mutant 21290 | -6/Extension | Discovered new exit (range 14) 21294 | -6/Extension | Discovered new exit (range 8) 21383 | -6/Extension | Entered Cetus 21383 | -6/Cetus | Accompanied by 3 allies (A7) 21388 | -6/Cetus | Acquired a Cetus Manufacturing Module code from A7 21401 | -6/Cetus | Spotted Cetus Guard 21401 | -6/Cetus | Spotted Cetus Guard 21404 | -6/Cetus | Spotted Cetus Guard 21407 | -6/Cetus | Allies destroyed Cetus Guard 21407 | -6/Cetus | Spotted Cetus Guard 21409 | -6/Cetus | Destroyed Cetus Guard 21411 | -6/Cetus | Destroyed Cetus Guard 21414 | -6/Cetus | Destroyed Cetus Guard 21493 | -6/Cetus | Started Cetus Manufacturing Module 21515 | -6/Cetus | Escorted A7 to Cetus Mainframe 21518 | -6/Cetus | Manufactured an Enhanced Grunt 21533 | -6/Cetus | Discovered new exit (range 15) 21543 | -6/Cetus | Manufactured an Enhanced Grunt 21568 | -6/Cetus | Manufactured an Enhanced Grunt 21593 | -6/Cetus | Manufactured an Enhanced Grunt 21618 | -6/Cetus | Manufactured an Enhanced Grunt 21660 | -6/Cetus | Spotted Cetus Guard 21667 | -6/Cetus | Spotted Cetus Guard 21673 | -6/Cetus | Allies destroyed Cetus Guard 21676 | -6/Cetus | Allies destroyed Cetus Guard 21688 | -6/Cetus | Extracted ID and sensor layout for unrecognized location from A7's data core 21698 | -6/Cetus | Discovered new exit (range 15) 21704 | -6/Cetus | Met Revision 17 21759 | -6/Cetus | Build established: Hacker-Mutant 21814 | -6/Cetus | Entered Archives 21814 | -6/Archives | Accompanied by 6 allies 22164 | -6/Archives | Discovered new exit (range 16) 22188 | -6/Archives | Discovered new exit (range 16) 22369 | -6/Archives | Discovered new exit (range 16) 22422 | -6/Archives | Build established: Scavenger-Mutant 22869 | -6/Archives | Build established: Hacker-Mutant 23062 | -6/Archives | Entered Hub_04(d) 23062 | -6/Hub_04(d) | Accompanied by 5 allies 23062 | -6/Hub_04(d) | Discovered new exit (range 11) 23214 | -6/Hub_04(d) | Discovered new exit (range 16) 23281 | -6/Hub_04(d) | Network Hub disabled 23313 | -6/Hub_04(d) | Network Hub disabled 23336 | -6/Hub_04(d) | Entered Factory 23336 | -5/Factory | Evolved 2 slots: Utility x2 23352 | -5/Factory | Lost 4 allies 24074 | -5/Factory | Cargo convoy interrupted 24546 | -5/Factory | Found Prototype Device 24546 | -5/Factory | Identified Exp. Shield Generator 24554 | -5/Factory | Found Prototype Launcher 24554 | -5/Factory | Identified Enh. Gamma Bomb Array 24567 | -5/Factory | Found Prototype Launcher 24567 | -5/Factory | Identified Scatter Rocket Array 24581 | -5/Factory | Identified exit to Factory 24587 | -5/Factory | Identified exit to Upper Caves 24756 | -5/Factory | Repaired Broken Exp. Shield Generator? 24801 | -5/Factory | Build established: Wizard-Sprinter 25006 | -5/Factory | Central database locked down 25061 | -5/Factory | Fabricated Graphene Brace? 25118 | -5/Factory | Fabricated Exp. Hacking Suite (x1) 25181 | -5/Factory | Fabricated Biomechanical Wings (x1) 25264 | -5/Factory | Sucked down chute 25264 | -5/Factory | Entered Waste 25266 | -5/Waste | Spotted C-40 Crusher 25277 | -5/Waste | Spotted C-40 Crusher 25279 | -5/Waste | EMP discharged 25279 | -5/Waste | System corruption reached 10% 25279 | -5/Waste | Spotted C-40 Crusher 25291 | -5/Waste | Spotted C-40 Crusher 25293 | -5/Waste | Spotted C-40 Crusher 25302 | -5/Waste | Spotted C-40 Crusher 25302 | -5/Waste | Discovered new exit (range 13) 25319 | -5/Waste | Entered Factory 25734 | -5/Factory | Discovered exit to Upper Caves (range 9) 25931 | -5/Factory | Fabricated Cmb. Linear Gravjet (x2) 26080 | -5/Factory | Repaired Adv. Gravity Neutralizer 26152 | -5/Factory | Repaired Cld. VTOL Module 26448 | -5/Factory | Fabricated Cmb. Linear Gravjet (x2) 26537 | -5/Factory | Fabricated Adv. Transmission Jammer (x2) 26542 | -5/Factory | Fabricated Cld. Cesium-ion Thruster (x1) 26577 | -5/Factory | Fabricated Cld. Cesium-ion Thruster (x1) 26834 | -5/Factory | Repaired Cld. Cesium-ion Thruster 26874 | -5/Factory | Spotted B-75 Beast 26884 | -5/Factory | Learned location of Quarantine (-2) 26909 | -5/Factory | Learned Armory trap positions 26935 | -5/Factory | Learned Testing emergency access door positions 26952 | -5/Factory | Learned Extension stockpile data 26977 | -5/Factory | Learned Armory repair station intel 27913 | -5/Factory | Cargo convoy interrupted 28046 | -5/Factory | Repaired Cld. Cesium-ion Thruster 28117 | -5/Factory | Fabricated Exp. Hacking Suite (x1) 28153 | -5/Factory | Entered Upper Caves 28394 | -5/Upper Caves | Learned location of 1 exit from Proximity Caves 28446 | -5/Upper Caves | Discovered new exit (range 8) 28447 | -5/Upper Caves | Identified exit to Upper Caves 28475 | -5/Upper Caves | Entered another Upper Caves area 28509 | -5/Upper Caves | Found Alien Artifact 28509 | -5/Upper Caves | Identified Core Expander 28509 | -5/Upper Caves | Installed Core Expander, added new Propulsion slot 28568 | -5/Upper Caves | Learned Factory trap positions 28590 | -5/Upper Caves | Build established: Hacker-Scout 28628 | -5/Upper Caves | Discovered new exit (range 9) 28630 | -5/Upper Caves | Identified exit to Zhirov 28638 | -5/Upper Caves | Entered Zhirov 28638 | -5/Zhirov | Discovered new exit (range 3) 28640 | -5/Zhirov | Identified exit to Proximity Caves 28643 | -5/Zhirov | Met Zhirov 28648 | -5/Zhirov | Learned location of Testing (-3) 28648 | -5/Zhirov | Learned location of Command (-1) 28650 | -5/Zhirov | Zhirov requested help retrieving the SGEMP Prototype 28654 | -5/Zhirov | Found Alien Artifact 28654 | -5/Zhirov | Identified Integrated Reactor 28654 | -5/Zhirov | Installed Integrated Reactor, increased core energy generation (+10) 28682 | -5/Zhirov | Found Alien Artifact 28690 | -5/Zhirov | Entered Proximity Caves 28719 | -4/Proximity Caves | Spotted B-86 Titan 28778 | -4/Proximity Caves | Learned location of 1 exit from Research 28961 | -4/Proximity Caves | Attracted the attention of an 0b10 checkpoint 28977 | -4/Proximity Caves | Entered Factory 28977 | -4/Factory | Evolved 2 slots: Utility x2 28978 | -4/Factory | Loaded intel: 108 trap records 29010 | -4/Factory | Repaired Mic. Fission Core 29119 | -4/Factory | Discovered new exit (range 9) 29167 | -4/Factory | Identified exit to Research 29270 | -4/Factory | Build established: Wizard-Sprinter 29333 | -4/Factory | Identified exit to Upper Caves 29333 | -4/Factory | Identified exit to Armory 29397 | -4/Factory | Identified Transdimensional Reconstructor 29410 | -4/Factory | Spotted B-86 Titan 29463 | -4/Factory | Fabricated Imp. Q-thruster? 29489 | -4/Factory | Found Prototype Device 29489 | -4/Factory | Identified Adv. EM Disruption Field 29757 | -4/Factory | Learned location of Armory (-4) 29760 | -4/Factory | Repaired Broken Electron Diverter? 29815 | -4/Factory | Learned location of 1 exit from Testing 29816 | -4/Factory | Learned Research emergency access door positions 29826 | -4/Factory | Learned location of 1 exit from Quarantine 29847 | -4/Factory | Learned Testing interactive machine intel 29877 | -4/Factory | Learned 8 Research zone layouts 30025 | -4/Factory | Repaired Molecular Scythe 30045 | -4/Factory | Repaired Adv. Plasma Cannon 30068 | -4/Factory | Cargo convoy interrupted 30391 | -4/Factory | Found Prototype Processor 30391 | -4/Factory | Identified Exp. Signal Interpreter 30394 | -4/Factory | Found Prototype Processor 30394 | -4/Factory | Identified Exp. Armor Integrity Analyzer 30397 | -4/Factory | Found Prototype Device 30397 | -4/Factory | Identified Exp. Weapon Cycler 30405 | -4/Factory | Found Prototype Protection 30405 | -4/Factory | Identified Centrium Heavy Armor Plating 30411 | -4/Factory | Found Exp. Terrain Scan Processor 30412 | -4/Factory | Found Exp. Armor Integrity Analyzer 30415 | -4/Factory | Found Exp. Terrain Scan Processor 30544 | -4/Factory | Repaired Broken Electron Diverter 30798 | -4/Factory | Fabricated Lrn. Terrain Scanner (x2) 30889 | -4/Factory | Entered Armory 30890 | -4/Armory | Loaded intel: 59 trap records 30891 | -4/Armory | Loaded intel: 2 repair station locations 30992 | -4/Armory | Fabricated Imp. Quantum Reactor? 31043 | -4/Armory | Fabricated Adv. Matter Compressor? 31108 | -4/Armory | Fabricated Exp. Hacking Suite? 31167 | -4/Armory | Fabricated Exp. Hacking Suite? 31301 | -4/Armory | Fabricated Exp. Utility Shielding? 31367 | -4/Armory | Fabricated Centrium Medium Armor Plating (x1) 31414 | -4/Armory | Fabricated Vibroblade (x1) 31461 | -4/Armory | Fabricated Prc. Matter Filter (x1) 31499 | -4/Armory | Discovered exit to Research (range 17) 31956 | -4/Armory | Build established: Wizard-Ninja 31973 | -4/Armory | Energy Cycler disabled 32113 | -4/Armory | Fabricated Imp. Quantum Reactor (x1) 32142 | -4/Armory | Spotted Armor Guard 32149 | -4/Armory | Discovered new exit (range 4) 32152 | -4/Armory | Entered Lab 32152 | -4/Lab | Discovered exit to Research (range 9) 32155 | -4/Lab | Hidden lab's door opened automatically 32155 | -4/Lab | Sensor layout match revealed 32156 | -4/Lab | Gained access to the hidden lab's interior 32175 | -4/Lab | Found Alien Artifact 32175 | -4/Lab | Identified Integrated Dissipator 32175 | -4/Lab | Installed Integrated Dissipator, increased core heat dissipation (+20) 32182 | -4/Lab | Found Core Expander 32182 | -4/Lab | Installed Core Expander, added new Utility slot 32242 | -4/Lab | Found Prototype Hackware 32243 | -4/Lab | Found Prototype Device 32245 | -4/Lab | Found Prototype Energy Gun 32245 | -4/Lab | Identified Tachyon Dispersion Ray 32247 | -4/Lab | Identified AEGIS Remote Shield 32249 | -4/Lab | Found Prototype Energy Cannon 32261 | -4/Lab | Unable to decrypt terminal 32295 | -4/Lab | Found Alien Artifact 32306 | -4/Lab | Identified Potential Cannon 32317 | -4/Lab | Identified Quantum Router 32327 | -4/Lab | Entered Research 32327 | -3/Research | Evolved 2 slots: Utility x2 32328 | -3/Research | Identified exit to Research 32329 | -3/Research | Identified exit to Testing 32370 | -3/Research | Identified Core Reset Matrix 32477 | -3/Research | Found Prototype Processor 32477 | -3/Research | Identified Exp. Target Analyzer 32527 | -3/Research | Revision forces began assault on 0b10 32539 | -3/Research | Central database locked down 32712 | -3/Research | Met up with Revision 17++ 32819 | -3/Research | Learned 4 Access zone layouts 32841 | -3/Research | Learned location of 1 exit from Armory 32860 | -3/Research | Learned Quarantine trap positions 32876 | -3/Research | Repaired Exp. Utility Shielding 32913 | -3/Research | Repaired Electron Diverter 32934 | -3/Research | Learned Access interactive machine intel 32951 | -3/Research | Repaired Cld. Impulse Thruster 33027 | -3/Research | Research terminal network offline 33113 | -3/Research | Repaired Mic. Fission Core 33118 | -3/Research | Spotted Striker 33169 | -3/Research | Fabricated Lrn. Terrain Scanner (x2) 33266 | -3/Research | Fabricated P-80 Master? 33275 | -3/Research | Found Prototype Device 33275 | -3/Research | Identified Adv. Kinecellerator 33315 | -3/Research | Entered Testing 33315 | -3/Testing | Accompanied by 2 allies 33316 | -3/Testing | Maximum security lockdown engaged 33318 | -3/Testing | Loaded intel: 17 interactive machine locations 33338 | -3/Testing | Found Prototype Energy Cannon 33338 | -3/Testing | Identified Cld. Nova Cannon 33400 | -3/Testing | Spotted Alpha 7 33401 | -3/Testing | Spotted Striker 33401 | -3/Testing | Spotted Striker 33402 | -3/Testing | Stole the SGEMP Prototype 33412 | -3/Testing | Garrison activated, responded to threat 33423 | -3/Testing | Found Prototype Ballistic Cannon 33423 | -3/Testing | Identified Perforator 33445 | -3/Testing | Found Prototype Launcher 33446 | -3/Testing | Identified Z-bomb Delivery System 33466 | -3/Testing | Found Prototype Energy Cannon 33466 | -3/Testing | Identified Imp. Potential Cannon 33486 | -3/Testing | Entered Research 33486 | -2/Research | Evolved 2 slots: Utility x2 33487 | -2/Research | Identified exit to Access 33499 | -2/Research | Found Prototype Device 33499 | -2/Research | Identified Beam Splitter 33523 | -2/Research | Identified exit to Quarantine 33605 | -2/Research | Repaired Exp. Utility Shielding? 33731 | -2/Research | Repaired Vibroblade? 33924 | -2/Research | Entered Quarantine 33925 | -2/Quarantine | Maximum security lockdown engaged 33926 | -2/Quarantine | Loaded intel: 15 trap records 33938 | -2/Quarantine | Found Alien Energy Cannon 33938 | -2/Quarantine | Identified Core Cannon 33955 | -2/Quarantine | Found Exp. Hacking Suite 33962 | -2/Quarantine | Cryocooling Duct disabled 33977 | -2/Quarantine | Ambient heat levels rising (+20) 34103 | -2/Quarantine | Cryocooling Duct disabled 34118 | -2/Quarantine | Ambient heat levels rising (+20) 34124 | -2/Quarantine | Found Alien Artifact 34134 | -2/Quarantine | Entered Access 34134 | -1/Access | Evolved 1 slot: Weapon x1 34135 | -1/Access | Delivered the SGEMP Prototype to Zhirov 34135 | -1/Access | Zhirov transferred Access data 34136 | -1/Access | Loaded intel: 117 machine locations 34136 | -1/Access | Loaded intel: 75 trap records 34136 | -1/Access | Identified exit to Surface 34136 | -1/Access | Discovered exit to Surface (range 231) 34136 | -1/Access | Identified exit to Command 34136 | -1/Access | Discovered exit to Command (range 163) 34136 | -1/Access | Loaded intel: 46 interactive machine locations 34146 | -1/Access | Spotted B-99 Colossus 34149 | -1/Access | Exp. Hacking Suite fried by hacking feedback 34180 | -1/Access | Repaired Exp. Utility Shielding 34182 | -1/Access | Identified Subatomic Replicator 34182 | -1/Access | Used Subatomic Replicator to replicate Z-bomb Delivery System 34229 | -1/Access | Zhirov warped through subspace 34241 | -1/Access | Rewired B-99 Colossus 34358 | -1/Access | Fabricated Zero-point Reactor? 34383 | -1/Access | Entered Command 34405 | -1/Command | Repaired Mic. Fission Core 34425 | -1/Command | Repaired Adv. Transmission Jammer? 34451 | -1/Command | Phase Generator disabled 34467 | -1/Command | Repaired Exp. Utility Shielding 34521 | -1/Command | Repaired Electron Diverter? 34553 | -1/Command | Disengaged cave seal 34566 | -1/Command | Disengaged cave seal 34636 | -1/Command | Spotted Combat Programmer 34636 | -1/Command | Spotted Combat Programmer 34808 | -1/Command | Spotted M Guard 34872 | -1/Command | Discovered exit to Surface (range 23) 35022 | -1/Command | Lost 5 parts (1p4n) 35091 | -1/Command | Crushed by falling debris 35122 | -1/Command | Lost 3 parts (3u) 35154 | -1/Command | Met MAIN.C 35168 | -1/Command | 0b10 Conduit disabled 35203 | -1/Command | System corruption reached 10% 35222 | -1/Command | Destroyed MAIN.C Shell 35225 | -1/Command | MAIN.C activated Command garrisons 35232 | -1/Command | Zhirov used SGEMP to disable MAIN.C 35260 | -1/Command | Lost 6 parts (1p4u1w) 35419 | -1/Command | Found Prototype Reactor 35419 | -1/Command | Identified Vortex Chain Reactor 35422 | -1/Command | Found Zero-point Reactor 35426 | -1/Command | Found Prototype Processor 35426 | -1/Command | Identified Exp. Targeting Computer 35429 | -1/Command | Found Prototype Device 35429 | -1/Command | Identified Exp. Force Field 35437 | -1/Command | Found Prototype Device 35437 | -1/Command | Identified Exp. System Purifier 35477 | -1/Command | Build established: Hauler-Mutant 35580 | -1/Command | Found Exp. EM Disruption Field 35595 | -1/Command | Found Z-bomb Delivery System 35930 | -1/Command | Build established: Hauler-Tank 37395 | -1/Command | Found Prototype Device 37395 | -1/Command | Identified Exp. ECM Suite 37406 | -1/Command | Found Prototype Ballistic Gun 37406 | -1/Command | Identified Multirail 37677 | -1/Command | Build established: Scavenger-Tank 37771 | -1/Command | Found Exp. Targeting Computer 37774 | -1/Command | Found Exp. Target Analyzer 37889 | -1/Command | Found Exp. Core Analyzer 37967 | -1/Command | Found Exp. Targeting Computer 38023 | -1/Command | Found Prototype Energy Gun 38023 | -1/Command | Identified Enh. Gamma Rifle 38329 | -1/Command | Found Prototype Protection 38329 | -1/Command | Identified Hvy. Regenerative Plating 38340 | -1/Command | Found Prototype Launcher 38340 | -1/Command | Identified Adv. Micro-nuke Launcher 38385 | -1/Command | Found Zero-point Reactor 38684 | -1/Command | Discovered exit to Surface (range 40) 38684 | -1/Command | Discovered exit to Surface (range 93) 38684 | -1/Command | Extracted map data and part IDs from MAIN.C's data core 38699 | -1/Command | Found Exp. Powered Armor 41078 | -1/Command | Found Zero-point Reactor 41082 | -1/Command | Found Zero-point Reactor 41086 | -1/Command | Found Zero-point Reactor 41088 | -1/Command | Found Cld. Nova Cannon 41097 | -1/Command | Found Hvy. Regenerative Plating 41772 | -1/Command | Warped through subspace to slip node 41772 | -1/Command | Discovered new exit (range 5) 41796 | -1/Command | Entered Access_0 41800 | -1/Access_0 | Met Architect 41800 | -1/Access_0 | Destroyed A8 41801 | -1/Access_0 | Architect warped through subspace 41879 | -1/Access_0 | Architect warped through subspace 41952 | -1/Access_0 | Architect warped through subspace 42025 | -1/Access_0 | Architect warped through subspace 42105 | -1/Access_0 | Architect warped through subspace 42187 | -1/Access_0 | Architect warped through subspace 42260 | -1/Access_0 | Architect warped through subspace 42340 | -1/Access_0 | Architect warped through subspace 42421 | -1/Access_0 | Architect warped through subspace 42498 | -1/Access_0 | Architect warped through subspace 42575 | -1/Access_0 | Architect warped through subspace 42652 | -1/Access_0 | Architect warped through subspace 42733 | -1/Access_0 | Architect warped through subspace 42799 | -1/Access_0 | Architect warped through subspace 42874 | -1/Access_0 | Architect warped through subspace 42899 | -1/Access_0 | Core integrity fell below 50% 42917 | -1/Access_0 | Lost 3 parts (3u) 42946 | -1/Access_0 | Architect warped through subspace 43051 | -1/Access_0 | Architect warped through subspace 43148 | -1/Access_0 | Subspace Access Node disabled 43211 | -1/Access_0 | Lost 3 parts (2n1u) 43217 | -1/Access_0 | A6 warped into view 43233 | -1/Access_0 | Core integrity fell below 20% 43264 | -1/Access_0 | Destroyed by Enhanced Grunt with Neutron Cannon Last Messages --------------- 43247_ Knocked back. 43247_ HV Slug penetrates Wall. 43248_ Penetrated by HV Slug. 43248_ Knocked back. 43248_ Penetrated by HV Slug. 43248_ Zero-point Reactor destroyed. 43249_ Penetrated by HV Slug. 43249_ Knocked back. 43250_ HV Slug penetrates Wall. 43250_ Knocked back. 43251_ Penetrated by HV Slug. 43251_ Knocked back. 43251_ Penetrated by HV Slug. 43252_ HV Slug penetrates Wall. 43253_ Penetrated by HV Slug. 43253_ HV Slug penetrates Wall. 43253_ Penetrated by HV Slug. 43253_ Acquired 4 matter. 43254_ Acquired 3 matter. 43255_ Quantum Shear penetrates Wall. Map ----- +----------------------------------------------------+ | ?????????????????????????????????????????????????? | | ?????????????????????????????????????????????????? | | ?????????????????????????????????????????????????? | | ?????????????????????????????????????????????????? | | ?????????????????????????????????????????????????? | | ?????????????????????????????????????????????????? | | ?????????????????????????????????????????????????? | | ?????????????????????????????????????????????????? | | ?????????????????????????????????????????????????? | | ??????????????????????????????????????############ | | ??????????????????????????????????????# " % | | ????????????????????????????????????###"" % | | ????????????????????????????????????# " "####### | | ????????????????????????????????????### #########? | | ??????????????????????????????????????# #???#""""# | | ??????????????????????????????????????# #????# # | | ??????????????????????????????????????# #????# | | ????????????????????????????????####?#" ##???#" | | ????????????????????????????????# ##" #???## | | ?????????????????????????????????# #??#" | | ?????????????????##?????????????## ###??## | | ?????????????????# ??????????## ##?????## | | ??????????????????# ???#####?# ##???????#### | | ?????????????????## ### ### ##??????????## | | ?????????????????# ggg ##???????????#" | | ????????????????# @ #????????????# | | ???????????????# ## #???????????# | | ???????????? ???????###### #??????## | | ????????????????????????????# #;; ##???????# | | ????????????????????????????#####;# #???????# | | ?????????????????????????????????### #??????# | | ???????????????????????????????????? ####??????# | | ????????????????????????????????????##?????????## | | ????????????????????????????????????????????????## | | ?????????????????????????????????????????????????# | | ?????????????????????????????????????????????????? | | ?????????????????????????????????????????????????? | | ?????????????????????????????????????????????????? | | ?????????????????????????????????????????????????? | | ?????????????????????????????????????????????????? | | ?????????????????????????????????????????????????? | | ?????????????????????????????????????????????????? | | ?????????????????????????????????????????????????? | | ?????????????????????????????????????????????????? | | ?????????????????????????????????????????????????? | | ?????????????????????????????????????????????????? | | ?????????????????????????????????????????????????? | | ?????????????????????????????????????????????????? | | ?????????????????????????????????????????????????? | | ?????????????????????????????????????????????????? | +----------------------------------------------------+ Best States ------------- Heat Dissipation 110 Energy Generation 71 Energy Capacity 1500 Matter Stores 800 Matter Capacity 800 Sight Range 20 Robot Scan Range 16 Terrain Scan Range 24 Terrain Scan Density 1010 ECM Strength 1 Jamming Range 16 Additional Mass Support 16 Corruption Block 40 Armor Coverage 1650 Resistance: TH 75 Resistance: EM 75 Core Shielding 30 Propulsion Shielding 66 Utility Shielding 90 Weapon Shielding 90 Weapon Cycling 30 Evasion (%) 75 Targeting Accuracy 20 Melee Accuracy 8 Launcher Accuracy 80 Core Analysis 8 Recoil Reduction 6 Matter Filtering 65 Energy Filtering 50 Particle Charging 25 Salvage Targeting 6 Offensive Hacking 80 Defensive Hacking 25 Relay Coupler Types 1 Relay Coupler Value 26 Authchip Count 3 Trap Extractor Capacity 6 Item Schematics ----------------- Hcp. Storage Unit | -10/Materials | Hacked Huge Storage Unit | -10/Mines | Hacked Lrg. Storage Unit | -9/Materials | Scanalyzed Visual Processing Unit | -9/Materials | Extracted Propulsion Shielding | -9/Materials | Extracted Hacking Suite | -8/Materials | Scanalyzed Cesium-ion Thruster | -8/Materials | Scanalyzed Mni. Grenade Launcher | -8/Materials | Scanalyzed Imp. Signal Interpreter | -8/Materials | Scanalyzed Imp. VTOL Module | -8/Materials | Scanalyzed Beamcaster | -8/Materials | Scanalyzed Minigun | -8/Materials | Scanalyzed Enh. Autogun | -7/Factory | Scanalyzed Nuclear Pulse Array | -7/Factory | Scanalyzed Imp. Transmission Jammer | -7/Factory | Scanalyzed Surge Thruster | -7/Factory | Scanalyzed Transport Network Coupler | -7/Factory | Scanalyzed Xenon Bombardment Thruster | -7/Factory | Scanalyzed Adv. Weight Redist. System | -7/Factory | Scanalyzed Exp. System Shield | -7/Factory | Scanalyzed Greatsword | -7/Factory | Scanalyzed Imp. Cesium-ion Thruster | -7/Factory | Scanalyzed Imp. Hacking Suite | -6/Extension | Hacked Exp. Hacking Suite | -5/Factory | Hacked Cmb. Gravmag System | -5/Factory | Hacked Exp. Shield Generator | -5/Factory | Scanalyzed Centrium Medium Armor Plating | -5/Factory | Scanalyzed Imp. Quantum Reactor | -5/Factory | Scanalyzed Adv. Gravity Neutralizer | -5/Factory | Scanalyzed Cld. VTOL Module | -5/Factory | Scanalyzed Cld. Cesium-ion Thruster | -5/Factory | Hacked Biomechanical Wings | -5/Factory | Hacked Cmb. Linear Gravjet | -5/Factory | Scanalyzed Enh. Gamma Bomb Array | -5/Factory | Scanalyzed Imp. Trap Extractor | -5/Factory | Scanalyzed Imp. Plasma Cutter | -5/Factory | Scanalyzed Machine Analyzer | -5/Factory | Scanalyzed Med. Storage Unit | -5/Factory | Scanalyzed ECM Suite | -5/Factory | Scanalyzed Imp. Gyrokinetic Inverter | -5/Factory | Hacked Q-thruster | -5/Factory | Hacked Prc. Matter Filter | -5/Factory | Hacked Adv. Weapon Cycler | -5/Factory | Hacked Imp. Fusion Compressor | -5/Factory | Hacked Enh. Biometal Leg | -5/Factory | Hacked Lrn. Sensor Array | -5/Factory | Hacked Assault Drone Bay | -5/Zhirov | Free Exp. Heat Sink | -5/Zhirov | Free Exp. Optical Array | -5/Zhirov | Free Imp. Arc Thrower | -5/Zhirov | Free Vibroblade | -4/Factory | Hacked Exp. Utility Shielding | -4/Factory | Hacked Imp. Q-thruster | -4/Factory | Scanalyzed Adv. Matter Compressor | -4/Factory | Scanalyzed Lrn. Terrain Scanner | -4/Factory | Hacked Adv. Terrain Scan Processor | -4/Factory | Hacked Exp. Terrain Scan Processor | -4/Factory | Hacked Centrium Greatsword | -4/Factory | Hacked Mapping Drone Bay | -4/Factory | Scanalyzed Molecular Scythe | -4/Factory | Scanalyzed Adv. Reaction Control System | -4/Factory | Scanalyzed Electron Diverter | -4/Factory | Scanalyzed Antimissile System | -4/Factory | Hacked Fusion Bomb Launcher | -4/Factory | Hacked Imp. Launcher Guidance Computer | -4/Factory | Hacked Biometal Leg | -4/Factory | Hacked Cld. Impulse Thruster | -4/Armory | Hacked Mic. Antimatter Reactor | -3/Research | Hacked Cld. Field Propulsion Drive | -3/Research | Scanalyzed Hyp. Railgun | -3/Research | Hacked Cld. Linear Gravjet | -3/Research | Hacked Thermal Barrier | -3/Research | Hacked Enh. Nova Cannon | -3/Research | Hacked Exp. Matter Compressor | -3/Research | Scanalyzed Graphene Brace | -3/Research | Scanalyzed Zero-point Reactor | -2/Research | Hacked Adv. Quantum Shading Machine | -2/Research | Hacked Exp. Q-thruster | -1/Access | Hacked Imp. Reaction Control System | -1/Access | Scanalyzed Robot Schematics ------------------ M-13 Machinist | -10/Mines | Hacked H-66 Slayer | -5/Factory | Hacked G-50 Soldier | -5/Factory | Hacked P-80 Master | -3/Research | Hacked E-15 Imp | -3/Research | Hacked A-27 Freighter | -3/Research | Hacked B-74 Champion | -3/Research | Hacked B-60 Warrior | -3/Research | Hacked S-43 Plague | -1/Command | Hacked Fabricated ------------ Nuclear Pulse Array | x1 | -7/Factory | Authchip B-48 Gladiator | x3 | -7/Factory | Preloaded Nuclear Pulse Array | x1 | -6/Factory | Authchip Graphene Brace | x2 | -5/Factory | Preloaded Exp. Hacking Suite | x1 | -5/Factory Biomechanical Wings | x1 | -5/Factory Cmb. Linear Gravjet | x2 | -5/Factory Cmb. Linear Gravjet | x2 | -5/Factory Adv. Transmission Jammer | x2 | -5/Factory | Preloaded Cld. Cesium-ion Thruster | x1 | -5/Factory Cld. Cesium-ion Thruster | x1 | -5/Factory Exp. Hacking Suite | x1 | -5/Factory Imp. Q-thruster | x1 | -4/Factory Lrn. Terrain Scanner | x2 | -4/Factory Imp. Quantum Reactor | x1 | -4/Armory | Authchip Adv. Matter Compressor | x1 | -4/Armory | Authchip Exp. Hacking Suite | x1 | -4/Armory | Authchip Exp. Hacking Suite | x1 | -4/Armory | Authchip Exp. Utility Shielding | x1 | -4/Armory | Authchip Centrium Medium Armor Plating | x1 | -4/Armory | Authchip Vibroblade | x1 | -4/Armory | Authchip Prc. Matter Filter | x1 | -4/Armory | Authchip Imp. Quantum Reactor | x1 | -4/Armory Lrn. Terrain Scanner | x2 | -3/Research P-80 Master | x2 | -3/Research Zero-point Reactor | x1 | -1/Access | Authchip Alien Tech Used ----------------- Core Expander Integrated Reactor Integrated Dissipator Core Cannon Subatomic Replicator Transdimensional Reconstructor Achievements -------------- None Challenges ------------ None Game ------ Seed BoreBladeHammer Manual? 1 Play Time 16:53:52 Cumulative 474.5 hours Start 2024.08.07 @ 16:54:03 End 2024.08.14 @ 00:23:32 Sessions 13 Manual Loads 0 Difficulty Rogue Special Mode None Game No. 178 Rogue 175 Adventurer 3 Explorer 0 Win Type - Total 7 Types 4/1/0/1/0/1/0/0/0 Lore% 64 Gallery% 85 Achievement% 86 Wizard Run 0 Options --------- Layout 1 ASCII 0 Keyboard 0 Movement Numpad Keybinds 0 Fullscreen 2 Font 24/Smallcaps Map View 50x35 Zoom Use 0% Tactical HUD 1 Map Filters NONE Filters NONE Steam 1 RUN: ab5c0094-eb03-4b8f-b12b-f1dbd05302cc